Cogmind - Beta 10.1 @@@ ROGUE MODE // 2021.05.28 @ 19:34:26 // Winter2019/RPGLIKE Player: Farfid Result: Destroyed by H-88 Terminator with Heavy Machine Gun Performance ------------- Evolutions (9) 4500 Regions Visited (33) 6600 Robots Destroyed (714) 3570 Value Destroyed (37388) 37388 Prototype IDs (78) 1560 Alien Tech Used (0) 0 Bonus (36109) 36109 TOTAL SCORE: 89727 Bonus ------- Triggered High Security 1500 High Alert Combat Kills 23375 Follower Combat Kills 2960 Network Hubs Disabled 200 Met Data Miner 300 Met Imprinter 300 Met Warlord at Base 500 MAIN.C Attacked Warlord 500 Warlord Defense Kill 4720 Built Enhanced Grunts 300 A7 Reached Mainframe 300 Met Warlord at Research 2000 Invited to Help at Command 2000 Scanned by Researcher 500 Friendly Fire -3346 Cogmind --------- Core Integrity 0/2550 Matter 178/350 Energy 1750/1750 System Corruption 20% Temperature Cool (0) Movement Flying (34) Location -1/Access Parts ------- > --- POWER (2) -------- Vortex Chain Reactor > --- PROPULSION (6) --- Impulse Thruster Array Impulse Thruster Array Impulse Thruster Array > --- UTILITY (11) ----- Advanced Energy Well Makeshift Sensor Array Experimental Signal Interpreter Experimental Terrain Scanner Experimental Core Analyzer Improved Kinecellerator Improved Weapon Cycler Nanoactuators Advanced Reaction Control System Advanced Hacking Suite Thief Drone Bay (0/3) > --- WEAPON (3) ------- Helical Railgun Helical Railgun Helical Railgun > --- INVENTORY (4) ---- Improved System Restoration Module Vibroblade Peak State ------------ > --- POWER ------------ Vortex Chain Reactor > --- PROPULSION ------- Impulse Thruster Array Impulse Thruster Array Impulse Thruster Array > --- UTILITY ---------- Advanced Energy Well Makeshift Sensor Array Experimental Signal Interpreter Experimental Terrain Scanner Experimental Core Analyzer Improved Kinecellerator Improved Weapon Cycler Nanoactuators Advanced Reaction Control System Advanced Hacking Suite Thief Drone Bay > --- WEAPON ----------- Helical Railgun Helical Railgun Helical Railgun > --- INVENTORY -------- Advanced Phase Shifter Improved System Restoration Module Vibroblade [Rating: 172] Favorites ----------- Power Zionite Light DM Reactor Engine F-cell Engine Power Core Micro Fission Core Reactor Zionite Light DM Reactor Propulsion Impulse Thruster Array Wheel Armored Wheel Hover Unit Improved Airjet Flight Unit Impulse Thruster Array Utility Long-range Tractor Beam Device Long-range Tractor Beam Storage Advanced Energy Well Processor Makeshift Salvage Targeting Computer Hackware Advanced Hacking Suite Protection Zionite Weapon Casing Weapon Helical Railgun Energy Cannon Latent Energy Streamer Ballistic Gun Helical Railgun Launcher Proton Missile Launcher Special Weapon Advanced Remote Datajack Slashing Weapon Ionic Axe Piercing Weapon Kinetic Spear Build | -11 -10 -10 -9 -9 -9 -8 -8 -7 -7 -7 -7 -7 -6 -6 -6 -6 -6 -5 -5 -5 -5 -5 -5 -5 -4 -4 -4 -4 -4 -4 -3 -2 -1 ------- Run | Scr Mat Min Mat Min Exi Min Mat Fac Low Low Zio Dee Pro Fac Low Low Dat Pro Fac Was Fac Upp Upp War Pro Fac Ext Cet Arc Hub Res Res Acc Slots Evolved 18 | 3 . . . 1 1 . . 3 . . . . 1 2 1 . . 1 1 . 1 . . . . 1 . . . . . 2 . Power 1 | . . . . . . . . 1 . . . . . . . . . . . . . . . . . . . . . . . . . Propulsion 5 | 1 . . . . 1 . . 1 . . . . . . . . . . 1 . 1 . . . . . . . . . . . . Utility 10 | 1 . . . 1 . . . 1 . . . . 1 1 1 . . 1 . . . . . . . 1 . . . . . 2 . Weapon 2 | 1 . . . . . . . . . . . . . 1 . . . . . . . . . . . . . . . . . . . Parts Attached 263 | 6 . 1 9 1 3 . 15 10 4 . 15 8 6 13 4 . . 1 1 9 26 5 . 18 1 6 15 2 . 8 33 32 11 Power 15 | 1 . . 3 . . . 1 4 3 . . 2 . . . . . . . . . . . 1 . . . . . . . . . Engine 5 | 1 . . 1 . . . 1 2 . . . . . . . . . . . . . . . . . . . . . . . . . Core 7 | . . . 2 . . . . 2 3 . . . . . . . . . . . . . . . . . . . . . . . . Reactor 3 | . . . . . . . . . . . . 2 . . . . . . . . . . . 1 . . . . . . . . . Propulsion 38 | 2 . . 2 . . . 4 1 1 . 3 . . 1 . . . . 1 1 11 . . 2 . . . . . . 3 6 . Treads . | . . . . . . . . . . . . . . . . . . . . . . . . . . . . . . . . . . Leg . | . . . . . . . . . . . . . . . . . . . . . . . . . . . . . . . . . . Wheel 3 | 2 . . 1 . . . . . . . . . . . . . . . . . . . . . . . . . . . . . . Hover 16 | . . . . . . . 4 1 1 . 3 . . 1 . . . . . 1 4 . . . . . . . . . . 1 . Flight 19 | . . . 1 . . . . . . . . . . . . . . . 1 . 7 . . 2 . . . . . . 3 5 . Utility 112 | 1 . 1 1 1 1 . . 4 . . 2 5 4 5 1 . . 1 . 2 7 3 . 7 1 6 12 . . 5 19 17 6 Device 93 | 1 . 1 1 1 1 . . 4 . . 2 3 3 5 1 . . . . 2 6 2 . 3 1 5 11 . . 4 17 15 4 Storage 4 | . . . . . . . . . . . . . . . . . . . . . . . . 1 . . . . . . . 1 2 Processor 9 | . . . . . . . . . . . . . 1 . . . . . . . . . . 2 . 1 1 . . 1 2 1 . Hackware 4 | . . . . . . . . . . . . . . . . . . 1 . . 1 1 . 1 . . . . . . . . . Protection 2 | . . . . . . . . . . . . 2 . . . . . . . . . . . . . . . . . . . . . Artifact . | . . . . . . . . . . . . . . . . . . . . . . . . . . . . . . . . . . Weapon 98 | 2 . . 3 . 2 . 10 1 . . 10 1 2 7 3 . . . . 6 8 2 . 8 . . 3 2 . 3 11 9 5 Energy Gun . | . . . . . . . . . . . . . . . . . . . . . . . . . . . . . . . . . . Energy Cannon 2 | . . . . . 1 . . . . . . . . . . . . . . . . . . 1 . . . . . . . . . Ballistic Gun 43 | 2 . . 3 . 1 . 6 1 . . 4 . . 6 3 . . . . 3 6 . . 2 . . . 1 . 1 1 2 1 Ballistic Cannon . | . . . . . . . . . . . . . . . . . . . . . . . . . . . . . . . . . . Launcher 32 | . . . . . . . 4 . . . 3 1 1 1 . . . . . 2 1 1 . 4 . . 1 1 . 1 5 4 2 Special Weapon 1 | . . . . . . . . . . . . . . . . . . . . 1 . . . . . . . . . . . . . Impact Weapon . | . . . . . . . . . . . . . . . . . . . . . . . . . . . . . . . . . . Slashing Weapon 14 | . . . . . . . . . . . 2 . . . . . . . . . 1 1 . 1 . . 2 . . 1 1 3 2 Piercing Weapon 6 | . . . . . . . . . . . 1 . 1 . . . . . . . . . . . . . . . . . 4 . . Special Melee Weapon . | . . . . . . . . . . . . . . . . . . . . . . . . . . . . . . . . . . Unidentified Prototypes 44 | . . . 3 1 1 . 2 3 . . 1 4 . 1 . . . . . 1 5 . . 10 . . . 1 . . 5 5 1 Parts Lost 5 | . . . . . . . . 1 . . . . . . . . . . . . . . . . . . . . . . . 1 3 Power 1 | . . . . . . . . 1 . . . . . . . . . . . . . . . . . . . . . . . . . Propulsion . | . . . . . . . . . . . . . . . . . . . . . . . . . . . . . . . . . . Utility 3 | . . . . . . . . . . . . . . . . . . . . . . . . . . . . . . . . 1 2 Weapon 1 | . . . . . . . . . . . . . . . . . . . . . . . . . . . . . . . . . 1 Highest Loss Streak 2 | . . . . . . . . 1 . . . . . . . . . . . . . . . . . . . . . . . 1 2 Average Slot Usage (%) 89 | . 85 98 100 89 87 88 99 98 100 100 100 99 100 90 89 93 93 88 88 87 91 94 94 89 84 84 84 85 85 85 84 79 80 Engine 1 | . 14 14 6 12 11 11 11 10 8 . . . . . . . . . . . . . . . . . . . . . . . . Core 1 | . . . 7 . . . . 3 7 16 16 7 . . . . . . . . . . . . . . . . . . . . . Reactor 5 | . . . . . . . . . . . . 8 15 13 12 12 12 11 11 11 10 10 10 7 5 5 5 5 5 5 5 4 4 Wheel 1 | . 28 28 24 12 11 11 . . . . . . . . . . . . . . . . . . . . . . . . . . . Hover 10 | . . . . . . . 30 32 33 33 33 33 30 20 18 18 18 17 13 10 9 . . . . . . . . . . . . Flight 10 | . . . 3 12 11 11 . . . . . . . . . . . . 2 5 12 26 26 25 21 20 20 20 20 20 20 14 13 Device 31 | . 14 27 28 25 30 33 33 33 33 33 33 32 30 32 32 37 37 35 33 33 31 30 31 28 26 25 25 30 30 30 29 33 30 Processor 5 | . . . . . . . . . . . . . 6 6 6 6 6 5 5 5 5 5 5 7 10 13 14 10 10 10 10 7 9 Hackware 2 | . . . . . . . . . . . . . . . . . . . 5 5 5 5 5 5 5 5 5 5 5 5 5 4 4 Ballistic Gun 11 | . 28 28 28 25 22 22 21 16 16 16 9 8 7 10 12 12 12 11 11 10 10 10 10 9 10 10 10 10 10 10 7 9 9 Launcher 3 | . . . . . . . . . . . 3 8 6 5 6 6 6 5 5 4 4 . 5 5 5 5 2 4 5 . 3 2 2 Naked Turns . | . . . . . . . . . . . . . . . . . . . . . . . . . . . . . . . . . . Heaviest Build 83 | 7 7 7 15 15 20 20 21 40 40 26 29 39 45 56 58 58 58 58 58 60 60 54 54 65 70 70 70 72 72 72 76 83 80 Greatest Support 91 | 26 26 26 26 17 17 17 34 47 54 54 63 63 63 63 57 57 57 57 57 46 81 67 67 85 85 76 76 81 81 81 84 91 91 Greatest Overweight (x) 1 | . . . 1 1 1 1 1 . . . . . . . 1 1 1 1 1 1 1 . . 1 . . 1 . . . . . . Average Overweight (x) . | . . . . . . 1 . . . . . . . . . 1 1 1 1 1 . . . . . . . . . . . . . Largest Inventory Capacity 4 | 2 2 2 2 2 3 3 3 3 3 3 3 3 3 3 3 3 3 3 3 3 3 3 3 3 3 3 4 4 4 4 4 4 4 Average Capacity 3 | 1 2 2 2 2 2 3 3 3 3 3 3 3 3 3 3 3 3 3 3 3 3 3 3 3 3 3 3 4 4 4 4 4 4 Most Carried 4 | . . 1 2 2 3 3 3 3 3 3 3 3 3 3 3 2 2 3 3 3 3 3 3 3 3 3 4 4 4 4 4 4 4 Average Carried 3 | . . . 1 1 2 3 3 3 3 3 2 3 2 2 2 2 2 2 2 2 2 2 3 2 3 2 3 4 4 4 3 3 3 Final Capacity 4 | 2 2 2 2 2 3 3 3 3 3 3 3 3 3 3 3 3 3 3 3 3 3 3 3 3 3 3 4 4 4 4 4 4 4 Final Carried 4 | . . 1 1 2 3 3 3 3 3 3 3 3 3 3 2 2 2 2 3 3 3 3 3 3 3 3 4 4 4 4 4 4 2 Class Distribution -------------------- 45% | Hacker-Scout 36% | Mutant 6% | Skirmisher 3% | Hacker-Skirmisher Dominant Class ---------------- Mutant | -10/Materials Mutant | -10/Mines Mutant | -9/Materials Mutant | -9/Mines Mutant | -9/Exiles Mutant | -8/Mines Mutant | -8/Materials Mutant | -7/Factory Mutant | -7/Lower Caves Mutant | -7/Lower Caves Mutant | -7/Zion Mutant | -7/Deep Caves Derelict-Scout | -6/Proximity Caves Mutant | -6/Factory Mutant | -6/Lower Caves Mutant | -6/Lower Caves Skirmisher | -6/Data Miner Skirmisher | -5/Proximity Caves Hacker-Skirmisher | -5/Factory Hacker-Skirmisher | -5/Waste Hacker-Scout | -5/Factory Hacker-Scout | -5/Upper Caves Hacker-Scout | -5/Upper Caves Hacker-Sprinter | -5/Warlord Hacker-Scout | -4/Proximity Caves Hacker-Scout | -4/Factory Hacker-Scout | -4/Extension Hacker-Scout | -4/Cetus Hacker-Scout | -4/Archives Hacker-Scout | -4/Hub_04(d) Hacker-Scout | -3/Research Hacker-Scout | -2/Research Hacker-Scout | -1/Access Resources | -11 -10 -10 -9 -9 -9 -8 -8 -7 -7 -7 -7 -7 -6 -6 -6 -6 -6 -5 -5 -5 -5 -5 -5 -5 -4 -4 -4 -4 -4 -4 -3 -2 -1 ----------- Run | Scr Mat Min Mat Min Exi Min Mat Fac Low Low Zio Dee Pro Fac Low Low Dat Pro Fac Was Fac Upp Upp War Pro Fac Ext Cet Arc Hub Res Res Acc Matter Collected 13562 | 272 40 22 158 22 23 26 320 176 138 . 728 160 216 689 126 265 . 185 34 40 976 172 114 503 140 597 851 114 49 186 951 2842 2427 Remotely 12497 | 10 40 22 158 22 23 26 320 176 138 . 728 160 30 689 126 258 . 185 34 40 969 172 114 503 140 564 803 114 49 186 945 2836 1917 Salvage Created 41505 | 100 49 89 55 . 23 . 95 267 130 . 970 362 686 1508 315 841 . 319 . . 1376 371 280 2191 266 2228 2826 . . 646 3375 9468 12669 Parts 1967 | 2 5 3 14 3 . . 15 14 8 . 78 23 27 66 12 38 . 14 . . 82 32 16 111 21 94 109 . 4 29 169 413 565 Haulers Intercepted 27 | . . . 1 . . . . 1 . . . . . 3 . . . . . . 5 . . . . 4 1 . . 4 4 3 1 Recyclers Shooed 9 | . . . 1 . . . . . . . . . . 2 . . . . . . . . . . . 2 . . . . . . 4 Parts Field Recycled . | . . . . . . . . . . . . . . . . . . . . . . . . . . . . . . . . . . Retrieved Matter . | . . . . . . . . . . . . . . . . . . . . . . . . . . . . . . . . . . Parts Self-Destructed 165 | . . . . . . . . . 10 . . . 23 . 7 17 . 16 . . . 30 6 35 21 . . . . . . . . Prevented 106 | . . . . . . . . . . . . . 6 . 5 17 . 12 . . . 3 8 55 . . . . . . . . . Kills | -11 -10 -10 -9 -9 -9 -8 -8 -7 -7 -7 -7 -7 -6 -6 -6 -6 -6 -5 -5 -5 -5 -5 -5 -5 -4 -4 -4 -4 -4 -4 -3 -2 -1 ------- Run | Scr Mat Min Mat Min Exi Min Mat Fac Low Low Zio Dee Pro Fac Low Low Dat Pro Fac Was Fac Upp Upp War Pro Fac Ext Cet Arc Hub Res Res Acc Combat Hostiles Destroyed 537 | . 2 . 5 1 . . 11 4 3 . 8 9 14 18 4 13 . 5 . . 15 9 9 40 6 29 23 . 1 5 33 131 139 Melee 15 | . . . . . . . . . . . . . 1 . . . . . . . . 2 . . . . 2 . . 4 3 3 . Guns 193 | . 2 . 5 1 . . 3 4 3 . 2 1 4 7 2 3 . . . . 10 3 1 5 6 12 13 . 1 1 15 54 35 AOE 199 | . . . . . . . 8 . . . 2 6 8 9 1 10 . 4 . . 3 4 5 19 . 10 6 . . . 11 41 52 Classes Destroyed 31 | 1 1 . 2 . . . 1 . 2 . 5 3 . 2 . 1 . . . . 1 . . 4 1 1 . . . . . 3 3 Worker 21 | . . . . . . . . . . . . . . 3 . . . . . . 3 . . . . 2 4 . . . 1 . 8 Builder 14 | . . . . . . . . . . . . . . . . . . . . . 1 . . . . . 2 . . . 1 . 10 Tunneler 1 | . . . . . . . . . . . . . . . . . . . . . . . . . . . . . . . . . 1 Hauler 27 | . . . 1 . . . . 1 . . . . . 3 . . . . . . 5 . . . . 4 1 . . 4 4 3 1 Recycler 18 | 1 . 1 . . . . . 1 . . . . . . . . . . . . . . . . . 2 5 . . . 2 1 5 Mechanic 13 | . . . . . . . . . . . . . . . . . . . . . . . . . . . . . . . . 4 9 Operator 2 | . . . . . . . . . . . . . . 1 . . . . . . 1 . . . . . . . . . . . . Drone 5 | . . . . . . . . . . . . . . . . . . . . . . . . . . . . . . . . . 5 Watcher 28 | . . . . . . . . . . . . . . 2 . . . . . . 1 . . . . 1 3 . . 2 9 4 6 Swarmer 89 | . . . 5 . . . 7 . . . . . 7 2 . 4 . 2 . . 1 4 4 6 5 4 4 . . . 10 19 5 Saboteur 14 | . . . . . . . . . . . . . . . . . . . . . . . . . . 1 . . . . . 8 5 Grunt 194 | . 2 . . 1 . . 2 4 . . . . 5 10 4 7 . 3 . . 6 . 4 13 . 21 7 . . 2 12 39 52 Brawler 30 | . . . . . . . . . . . . . . . . 1 . . . . . . . 6 . 1 2 . . . 1 5 14 Duelist 19 | . . . . . . . . . . . . . 1 1 . . . . . . . . . 3 . . 1 . . . . 6 7 Protector 16 | . . . . . . . . . . . . . . . . . . . . . . . . 3 . . 1 . . . . 6 6 Sentry 26 | . . . . . . . 2 . . . . . 1 2 . . . . . . 3 1 . . . . 3 . 1 2 3 5 3 Demolisher 3 | . . . . . . . . . . . . . . . . . . . . . . . . . . . . . . . . 3 . Specialist 1 | . . . . . . . . . . . . . . . . . . . . . . . . 1 . . . . . . . . . Hunter 37 | . . . . . . . . . 1 . . . . . . . . . . . 2 2 1 1 . 2 4 . . . . 11 13 Programmer 51 | . . . . . . . . . 2 . . . . 3 . . . . . . 3 2 . 4 . . . . . . 7 10 20 Q-Series 1 | . . . . . . . . . . . . . . . . . . . . . . . . . . . . . . . . . 1 Behemoth 2 | . . . . . . . . . . . . . . . . . . . . . . . . . 1 . 1 . . . . . . Lightning 1 | . . . . . . . . . . . . . . . . . . . . . . . . . . . . . . 1 . . . Investigator 5 | . . . . . . . . . . . . . . . . . . . . . . . . . . . . . . . . 3 2 Striker 15 | . . . . . . . . . . . . . . . . . . . . . . . . 2 . . . . . . . 8 5 Executioner 16 | . . . . . . . . . . . . . . . . . . . . . . . . 1 . . . . . . . 11 4 Zionite 33 | . . . . . . . . . . . 33 . . . . . . . . . . . . . . . . . . . . . . Z-Technician 5 | . . . . . . . . . . . . 5 . . . . . . . . . . . . . . . . . . . . . Z-Light 6 | . . . . . . . . . . . . 6 . . . . . . . . . . . . . . . . . . . . . Tinkerer 2 | . . . . . . . . . . . 2 . . . . . . . . . . . . . . . . . . . . . . Assembled 3 | . . . . . . . . . . . . 3 . . . . . . . . . . . . . . . . . . . . . Wasp 3 | . . . . . . . . . . . . . . . . . . . . . . . . . . . . . . . . 3 . Thug 2 | . . . . . . . . . . . . . . . . . . 1 . . . . . 1 . . . . . . . . . Butcher 1 | . . . . . . . . . . . 1 . . . . . . . . . . . . . . . . . . . . . . Martyr 1 | . . . . . . . . . . . 1 . . . . . . . . . . . . . . . . . . . . . . Guerrilla 1 | . . . . . . . . . . . . . . . . . . . . . . . . . . . 1 . . . . . . Mutant 7 | . . . . . . . . . . . 6 . . . . 1 . . . . . . . . . . . . . . . . . Hydra 1 | . . . . . . . . . . . . . . . . . . . . . . . . . . . . . . . . 1 . Best Kill Streak 53 | 1 2 1 3 1 . . 5 3 1 . 17 6 6 9 4 4 . 3 . . 6 4 8 20 5 14 8 . 1 2 5 28 53 Combat Bots Only 41 | . 2 . 3 1 . . 5 3 1 . 4 6 6 7 4 4 . 3 . . 4 4 8 20 5 9 8 . 1 2 5 27 41 Max Kills in Single Turn 5 | 1 1 1 2 1 . . 4 3 1 . 2 5 2 2 1 2 . 3 . . 2 2 2 3 2 4 2 . 1 1 5 4 5 Gunslinging 1 | . . . 1 . . . . 1 . . . . . . . . . . . . . . . . 1 . . . . . . . 1 Exploded 5 | . . . . . . . 4 . . . 1 2 2 2 1 2 . 2 . . 1 2 2 3 . 2 2 . . . 5 2 3 Melee 1 | . . . . . . . . . . . . . 1 . . . . . . . . 1 . . . . 1 . . 1 1 1 . Uniques/NPCs Destroyed 1 | . . . . . . . . . . . 1 . . . . . . . . . . . . . . . . . . . . . . Imprinter (-7/Zion) Combat | -11 -10 -10 -9 -9 -9 -8 -8 -7 -7 -7 -7 -7 -6 -6 -6 -6 -6 -5 -5 -5 -5 -5 -5 -5 -4 -4 -4 -4 -4 -4 -3 -2 -1 -------- Run | Scr Mat Min Mat Min Exi Min Mat Fac Low Low Zio Dee Pro Fac Low Low Dat Pro Fac Was Fac Upp Upp War Pro Fac Ext Cet Arc Hub Res Res Acc Damage Taken 19969 | . 115 19 215 40 . . 181 36 137 . 629 439 435 463 106 567 . 446 . . 1298 358 221 460 211 357 570 92 10 1214 1622 4475 5253 Core 15977 | . 97 15 163 33 . . 143 28 107 . 495 350 343 375 82 458 . 343 . . 1011 280 188 370 164 286 465 72 8 978 1299 3651 4173 Absorbed by Shields 1093 | . . . . . . . . . . . . . . . . . . . . . . . . 219 188 164 273 88 9 . . 38 114 Redirected to Core 13785 | . 66 13 148 22 . . 127 23 107 . 439 324 302 280 82 368 . 343 . . 970 260 106 313 164 222 366 55 8 884 1127 2982 3684 Core Remaining (%) 84 | 100 . 97 . . . 100 100 . . . . . 80 . . . . 100 . . . . . . 91 . . . . 53 34 88 . Volleys Fired 1292 | 3 11 2 12 2 5 . 20 10 14 . 122 17 36 70 12 40 . 10 1 . 83 12 13 44 15 64 74 10 4 10 81 255 240 Largest 3 | 2 2 2 2 2 2 . 2 2 2 . 2 1 1 3 2 2 . 2 2 . 2 2 2 2 2 2 2 2 2 2 2 3 3 Hottest 156 | 40 40 40 46 46 46 . 50 53 53 . 67 39 39 99 63 63 . 63 63 . 63 60 60 60 68 68 68 73 73 73 80 156 114 Shots Fired 1987 | 6 22 4 24 4 10 . 29 20 28 . 135 17 36 111 19 49 . 13 2 . 142 22 16 59 29 106 134 19 8 18 115 420 370 Gun 1527 | 6 22 4 24 4 10 . 20 20 28 . 97 5 24 87 14 31 . 4 2 . 122 18 6 30 29 84 123 18 8 17 98 325 247 Cannon . | . . . . . . . . . . . . . . . . . . . . . . . . . . . . . . . . . . Launcher 460 | . . . . . . . 9 . . . 38 12 12 24 5 18 . 9 . . 20 4 10 29 . 22 11 1 . 1 17 95 123 Special . | . . . . . . . . . . . . . . . . . . . . . . . . . . . . . . . . . . Kinetic 1527 | 6 22 4 24 4 10 . 20 20 28 . 97 5 24 87 14 31 . 4 2 . 122 18 6 30 29 84 123 18 8 17 98 325 247 Thermal . | . . . . . . . . . . . . . . . . . . . . . . . . . . . . . . . . . . Explosive 9 | . . . . . . . 9 . . . . . . . . . . . . . . . . . . . . . . . . . . Electromagnetic 451 | . . . . . . . . . . . 38 12 12 24 5 18 . 9 . . 20 4 10 29 . 22 11 1 . 1 17 95 123 Robot Hit Streak 49 | 2 6 2 4 5 12 . 5 7 7 . 12 10 6 24 9 16 . 17 10 . 49 31 18 17 32 37 18 9 6 2 17 34 38 Robot Miss Streak 6 | 1 2 2 2 . 1 . 2 2 1 . 2 1 4 3 2 1 . 2 . . 1 1 . 1 . 1 3 6 1 2 2 5 6 Penetration Max 2 | . . . . . . . . 1 . . 1 . . 1 1 . . . . . 1 . . 1 . 2 2 . . 1 1 2 2 Secondary Targets 33 | . 1 . 3 1 . . 1 1 . . . . . . 1 . . . . . 1 . . . 1 1 3 . 1 1 1 6 10 Max Gunslinging Chain 2 | . 1 . 1 1 . . 1 1 . . . . . . 1 . . . . . 1 . . . 1 1 1 . 1 1 1 1 2 Shots Hit Robots 1563 | 4 15 2 13 4 8 . 19 16 18 . 111 5 24 72 12 34 . 9 2 . 104 26 14 37 23 79 133 10 7 36 114 347 265 Core Hits 2009 | 2 4 2 9 2 2 . 17 10 4 . 55 17 28 60 14 32 . 14 . . 52 14 11 111 9 67 71 5 4 16 90 571 716 Critical Hits 150 | . . . . . . . . . 1 . 3 . 2 23 1 4 . 1 1 . 12 1 . 3 8 11 20 2 1 5 10 25 16 Critical Kills 41 | . . . . . . . . . 1 . 2 . 1 5 1 1 . . . . 2 . . . 1 3 5 . 1 1 3 11 3 Critical Parts Destroyed 80 | . . . . . . . . . . . 1 . 1 18 . 2 . 1 1 . 7 1 . 3 2 8 7 2 . 3 7 10 6 Melee Attacks 199 | . . . . . . . . . . . 7 . 8 . . . . . . . . 11 . . . . 30 . . 33 52 40 18 Impact . | . . . . . . . . . . . . . . . . . . . . . . . . . . . . . . . . . . Slashing 162 | . . . . . . . . . . . 5 . . . . . . . . . . 11 . . . . 30 . . 33 30 35 18 Piercing 37 | . . . . . . . . . . . 2 . 8 . . . . . . . . . . . . . . . . . 22 5 . Sneak Attacks 19 | . . . . . . . . . . . . . . . . . . . . . . . . . . . 5 . . 6 3 5 . Combat Hostiles . | . . . . . . . . . . . . . . . . . . . . . . . . . . . . . . . . . . Follow-up Attacks . | . . . . . . . . . . . . . . . . . . . . . . . . . . . . . . . . . . Damage Inflicted 112753 | 54 140 18 193 66 145 . 1146 420 273 . 3495 3125 1342 3522 560 1445 . 782 38 . 4469 1954 862 7080 898 5447 7800 475 267 2813 7193 27708 29023 Guns 42135 | 54 140 18 193 66 145 . 245 420 273 . 2073 77 414 853 228 546 . 68 38 . 2954 450 171 945 898 2606 4818 429 267 573 3028 11170 7975 Cannons . | . . . . . . . . . . . . . . . . . . . . . . . . . . . . . . . . . . Explosions 60118 | . . . . . . . 901 . . . 1422 3048 845 2669 332 899 . 714 . . 1515 343 691 6135 . 2841 1180 46 . 16 2082 13890 20549 Melee 10500 | . . . . . . . . . . . . . 83 . . . . . . . . 1161 . . . . 1802 . . 2224 2083 2648 499 Ramming . | . . . . . . . . . . . . . . . . . . . . . . . . . . . . . . . . . . Kinetic 42135 | 54 140 18 193 66 145 . 245 420 273 . 2073 77 414 853 228 546 . 68 38 . 2954 450 171 945 898 2606 4818 429 267 573 3028 11170 7975 Thermal 16413 | . . . . . . . . . . . 93 2448 90 578 . . . 57 . . 155 . . 1915 . 811 79 . . . 380 3589 6218 Explosive 2868 | . . . . . . . 901 . . . . . . 1421 . . . . . . . . . . . 218 . . . . . 134 194 Electromagnetic 40837 | . . . . . . . . . . . 1329 600 755 670 332 899 . 657 . . 1360 343 691 4220 . 1812 1101 46 . 16 1702 10167 14137 Impact . | . . . . . . . . . . . . . . . . . . . . . . . . . . . . . . . . . . Slashing 9531 | . . . . . . . . . . . . . . . . . . . . . . 1161 . . . . 1802 . . 2224 1611 2234 499 Piercing 969 | . . . . . . . . . . . . . 83 . . . . . . . . . . . . . . . . . 472 414 . Highest Corruption 20 | . 2 2 . . . . . . 3 3 3 . . 6 6 6 6 6 . . 9 9 9 10 1 3 3 3 3 11 9 5 20 Average Corruption 4 | . 2 2 . . . . . . 2 3 3 . . 3 6 6 6 6 . . 5 9 9 1 1 3 3 3 3 3 6 3 10 Corruption Purged 14 | . . . . . . . . . . . . . . . . . . . . . . . . . . . . . . . 9 5 . Effects 311 | . . 3 . . . . . . 2 1 . . . 13 12 23 3 20 . . 26 21 13 1 1 12 24 4 2 13 49 28 40 Message Errors 46 | . . . . . . . . . 1 . . . . 1 . 5 2 5 . . 5 4 . . . 4 5 . . . 6 1 7 Matter Fused 64 | . . . . . . . . . . . . . . 4 6 6 1 2 . . 4 3 3 . . 1 9 2 1 3 10 4 5 Heat Flow Errors 38 | . . . . . . . . . 1 . . . . 2 2 4 . 6 . . 4 2 1 . . 2 2 . 1 . 6 5 . Energy Discharges 26 | . . 2 . . . . . . . 1 . . . 1 1 1 . 3 . . 4 2 1 . . 1 1 . . 1 3 3 1 Parts Rejected 7 | . . . . . . . . . . . . . . . 1 . . . . . . 1 . . . . . . . . 2 2 1 Data Loss (minor) 30 | . . 1 . . . . . . . . . . . 2 . 3 . 3 . . 3 2 2 . . 1 2 . . 3 6 1 1 Data Loss (major) 6 | . . . . . . . . . . . . . . 1 1 1 . . . . . 2 . . . . . . . . 1 . . Misfires 10 | . . . . . . . . . . . . . . . 1 . . 1 . . . 2 2 . . . . . . . 3 . 1 Alerts 1 | . . . . . . . . . . . . . . . . . . . . . . . . . . . . . . . . . 1 Misdirections 1 | . . . . . . . . . . . . . . . . . . . . . . . . . . . . . . . . . 1 Targeting Errors 72 | . . . . . . . . . . . . . . 2 . 2 . . . . 3 3 3 1 . 3 5 2 . 5 12 11 20 Weapon Failures 10 | . . . . . . . . . . . . . . . . 1 . . . . 3 . 1 . 1 . . . . 1 . 1 2 Overload Shots . | . . . . . . . . . . . . . . . . . . . . . . . . . . . . . . . . . . Overflow Damage 3357 | . . . . . . . 40 . . . 30 688 . 310 . . . 10 . . 135 110 . 76 . 236 413 . . 351 196 343 419 Projectiles . | . . . . . . . . . . . . . . . . . . . . . . . . . . . . . . . . . . Explosions 2248 | . . . . . . . 40 . . . 30 688 . 310 . . . 10 . . 135 5 . 76 . 236 75 . . . 82 190 371 Melee 1109 | . . . . . . . . . . . . . . . . . . . . . . 105 . . . . 338 . . 351 114 153 48 Knockbacks . | . . . . . . . . . . . . . . . . . . . . . . . . . . . . . . . . . . Impact . | . . . . . . . . . . . . . . . . . . . . . . . . . . . . . . . . . . Kinetic . | . . . . . . . . . . . . . . . . . . . . . . . . . . . . . . . . . . Secondary . | . . . . . . . . . . . . . . . . . . . . . . . . . . . . . . . . . . Self-Inflicted Damage 211 | . . . . . . . . . . . 3 . 12 31 . 10 . . . . . . . 50 . 14 . 2 . . 18 16 55 Shots 22 | . . . . . . . . . . . 1 . 1 2 . 2 . . . . . . . 1 . 1 . 1 . . 2 2 9 Rammed . | . . . . . . . . . . . . . . . . . . . . . . . . . . . . . . . . . . Targets Rammed . | . . . . . . . . . . . . . . . . . . . . . . . . . . . . . . . . . . Kicked . | . . . . . . . . . . . . . . . . . . . . . . . . . . . . . . . . . . Crushed . | . . . . . . . . . . . . . . . . . . . . . . . . . . . . . . . . . . Highest Temperature 243 | . 3 . . . . . . . 153 . . . . 238 129 221 . 227 . . 243 156 208 . . 145 218 . 85 . 190 156 30 Average Temperature 43 | . 3 . . . . . . . 80 . . . . 103 76 101 . 102 . . 102 83 82 . . 64 99 . 49 . 79 14 9 Received Heat Transfer 2411 | . 69 . 36 24 . . 63 9 9 . 63 135 84 153 45 192 . 129 . . 162 36 48 67 24 19 141 . . 69 207 291 336 Siege Activations . | . . . . . . . . . . . . . . . . . . . . . . . . . . . . . . . . . . Robots Corrupted 135 | . . . . . . . . . . . 4 2 1 2 1 . . 1 . . 3 . 3 16 . 7 2 . . . 4 33 56 Combat Hostiles 130 | . . . . . . . . . . . 4 2 1 2 1 . . 1 . . 2 . 3 16 . 7 2 . . . 4 33 52 Parts Fried 337 | . . . . . . . . . . . 14 5 2 . 1 6 . 2 . . 4 5 12 30 . 8 12 . . . 14 87 135 Impact Corruptions . | . . . . . . . . . . . . . . . . . . . . . . . . . . . . . . . . . . Robots Melted . | . . . . . . . . . . . . . . . . . . . . . . . . . . . . . . . . . . Combat Hostiles . | . . . . . . . . . . . . . . . . . . . . . . . . . . . . . . . . . . Parts Melted 19 | . . . . . . . . . . . . . . . . . . . . . . . . 2 . . . . . . . 2 15 Heat Transferred 11189 | . . . . . . . . . . . 100 250 150 450 . . . . . . 200 . . 1531 . 500 50 . . . 250 2930 4778 Parts Sabotaged . | . . . . . . . . . . . . . . . . . . . . . . . . . . . . . . . . . . Parts Stolen . | . . . . . . . . . . . . . . . . . . . . . . . . . . . . . . . . . . Parts Stripped . | . . . . . . . . . . . . . . . . . . . . . . . . . . . . . . . . . . Power Chain Reactions 109 | . . . . . . . . . . . 4 3 1 3 . 1 . 1 . . 3 . 1 14 . 1 1 . . . 4 27 45 Missiles Intercepted . | . . . . . . . . . . . . . . . . . . . . . . . . . . . . . . . . . . Alert | -11 -10 -10 -9 -9 -9 -8 -8 -7 -7 -7 -7 -7 -6 -6 -6 -6 -6 -5 -5 -5 -5 -5 -5 -5 -4 -4 -4 -4 -4 -4 -3 -2 -1 ------- Run | Scr Mat Min Mat Min Exi Min Mat Fac Low Low Zio Dee Pro Fac Low Low Dat Pro Fac Was Fac Upp Upp War Pro Fac Ext Cet Arc Hub Res Res Acc Peak Influence 6872 | 5 60 58 307 175 . . 467 518 . . . . . 972 . . . . 164 57 1636 . . . . 1300 1945 1264 725 998 1303 4435 6872 Initial 2660 | . 3 23 22 119 . . . 212 . . . . . 75 . . . . 132 57 39 . . . . 96 623 1100 497 253 486 732 2660 Average 1284 | . 40 31 163 170 . . 194 342 . . . . . 438 . . . . 136 57 903 . . . . 786 1100 1243 673 544 750 2332 4152 Maximum Alert Level 5 | . . . 1 . . . 2 2 . . . . . 3 . . . . . . 5 . . . . 4 5 4 3 3 4 5 5 Low Security (%) 19 | 100 100 100 57 100 . 100 55 11 . . . . . 26 . . . . 100 100 23 . . . . 10 . . . 11 . . . Level 1 8 | . . . 42 . . . 16 47 . . . . . 19 . . . . . . . . . . . 3 . . . 21 . . . Level 2 16 | . . . . . . . 27 41 . . . . . 32 . . . . . . 9 . . . . 29 3 . 36 30 46 . . Level 3 17 | . . . . . . . . . . . . . . 21 . . . . . . 13 . . . . 23 62 . 63 37 42 9 . Level 4 15 | . . . . . . . . . . . . . . . . . . . . . 53 . . . . 33 25 100 . . 10 29 . Level 5 5 | . . . . . . . . . . . . . . . . . . . . . . . . . . . . . . . . . 43 High Security 16 | . . . . . . . . . . . . . . . . . . . . . . . . . . . 8 . . . . 60 56 Max Security . | . . . . . . . . . . . . . . . . . . . . . . . . . . . . . . . . . . Sterilizations 2 | . . . . . . . . . . . . . . . . . . . . . . . . . . . . . . . . 1 1 Squads Dispatched 90 | . . . 1 . . . 3 4 . . . . . 8 . . . . . . 17 . . . . 6 6 . . 2 7 2 34 Investigation 16 | . . . . . . . . 3 . . . . . 2 . . . . . . 5 . . . . 2 1 . . . 2 1 . Extermination 8 | . . . . . . . . 1 . . . . . 2 . . . . . . 1 . . . . . . . . . 3 . 1 Reinforcement 28 | . . . 1 . . . 2 . . . . . . 4 . . . . . . 9 . . . . 2 2 . . 2 1 1 4 Assault 34 | . . . . . . . . . . . . . . . . . . . . . 1 . . . . 1 3 . . . 1 . 28 Garrison 4 | . . . . . . . 1 . . . . . . . . . . . . . 1 . . . . 1 . . . . . . 1 Intercept . | . . . . . . . . . . . . . . . . . . . . . . . . . . . . . . . . . . Construction Impeded 9 | . . . . . . . 1 . . . . . . . . . . . . . 1 . . . . 1 2 . . . 1 . 3 Haulers Reinforced 9 | . . . . . . . . . . . . . . 1 . . . . . . 4 . . . . 1 . . . 1 . 1 1 Stealth | -11 -10 -10 -9 -9 -9 -8 -8 -7 -7 -7 -7 -7 -6 -6 -6 -6 -6 -5 -5 -5 -5 -5 -5 -5 -4 -4 -4 -4 -4 -4 -3 -2 -1 --------- Run | Scr Mat Min Mat Min Exi Min Mat Fac Low Low Zio Dee Pro Fac Low Low Dat Pro Fac Was Fac Upp Upp War Pro Fac Ext Cet Arc Hub Res Res Acc Distress Signals 18 | . . . 1 . . . 1 . . . . . . 2 . . . . . . 4 . . . . 2 1 1 . . 1 4 1 Communications Jammed . | . . . . . . . . . . . . . . . . . . . . . . . . . . . . . . . . . . Distress Signals . | . . . . . . . . . . . . . . . . . . . . . . . . . . . . . . . . . . Times Spotted 949 | . 4 . 11 2 . . 15 7 5 . 53 8 20 27 4 18 . 14 1 1 44 8 10 67 5 40 54 6 3 33 57 213 219 Peak Tracking Total 22 | . 2 . 4 1 . . 4 3 2 . 6 6 7 5 4 4 . 5 1 1 6 4 4 20 2 8 10 5 1 17 7 22 22 Tactical Retreats 64 | . . . . . . . . 1 . . 13 . 3 6 . 2 . 1 . . 3 . 1 3 . 5 3 . . . 6 11 6 Traps | -11 -10 -10 -9 -9 -9 -8 -8 -7 -7 -7 -7 -7 -6 -6 -6 -6 -6 -5 -5 -5 -5 -5 -5 -5 -4 -4 -4 -4 -4 -4 -3 -2 -1 ------- Run | Scr Mat Min Mat Min Exi Min Mat Fac Low Low Zio Dee Pro Fac Low Low Dat Pro Fac Was Fac Upp Upp War Pro Fac Ext Cet Arc Hub Res Res Acc Traps Triggered 36 | . 1 1 . . . . . 6 . . . . . 5 . . . . 1 . 8 . . 2 . 2 . . . 1 7 . 2 Indirectly 19 | . . . . . . . . . . . . . . 5 . . . . . . 7 . . 2 . . . . . . 4 . 1 Trap Hack Attempts . | . . . . . . . . . . . . . . . . . . . . . . . . . . . . . . . . . . Triggered . | . . . . . . . . . . . . . . . . . . . . . . . . . . . . . . . . . . Disarmed . | . . . . . . . . . . . . . . . . . . . . . . . . . . . . . . . . . . Reprogrammed . | . . . . . . . . . . . . . . . . . . . . . . . . . . . . . . . . . . Reused . | . . . . . . . . . . . . . . . . . . . . . . . . . . . . . . . . . . Traps Extracted . | . . . . . . . . . . . . . . . . . . . . . . . . . . . . . . . . . . Installed . | . . . . . . . . . . . . . . . . . . . . . . . . . . . . . . . . . . Triggered 3 | . . . . . . . . . 1 . . . . . . . . . . . . . . 2 . . . . . . . . . Machines | -11 -10 -10 -9 -9 -9 -8 -8 -7 -7 -7 -7 -7 -6 -6 -6 -6 -6 -5 -5 -5 -5 -5 -5 -5 -4 -4 -4 -4 -4 -4 -3 -2 -1 ---------- Run | Scr Mat Min Mat Min Exi Min Mat Fac Low Low Zio Dee Pro Fac Low Low Dat Pro Fac Was Fac Upp Upp War Pro Fac Ext Cet Arc Hub Res Res Acc Machines Disabled 104 | . . . . . . . 1 . 3 . . 2 . 24 . 2 . . . . 27 . . 1 . 19 3 . 3 4 3 3 9 Max in Single Turn 8 | . . . . . . . 1 . 2 . . 2 . 7 . 1 . . . . 8 . . 1 . 7 1 . 1 2 1 1 1 Garrison Access 10 | . . . . . . . . . . . . . . . . . . . . . 2 . . . . . . . . 2 1 3 2 Network Hub 1 | . . . . . . . . . . . . . . . . . . . . . . . . . . . . . . 1 . . . Energy Cycler 1 | . . . . . . . . . . . . . . . . . . . . . . . . . . . . . . . . . 1 Machines Sabotaged 1 | . . . . . . . . . . . . . . . . . . . . . . . . . . 1 . . . . . . . Garrisons Compromised . | . . . . . . . . . . . . . . . . . . . . . . . . . . . . . . . . . . Overloaded Fab Kills 2 | . . . . . . . . . . . . . . 2 . . . . . . . . . . . . . . . . . . . Fab Network Shutdowns 2 | . . . . . . . . 1 . . . . . . . . . . . . . . . . . . . . . . 1 . . Hacking | -11 -10 -10 -9 -9 -9 -8 -8 -7 -7 -7 -7 -7 -6 -6 -6 -6 -6 -5 -5 -5 -5 -5 -5 -5 -4 -4 -4 -4 -4 -4 -3 -2 -1 --------- Run | Scr Mat Min Mat Min Exi Min Mat Fac Low Low Zio Dee Pro Fac Low Low Dat Pro Fac Was Fac Upp Upp War Pro Fac Ext Cet Arc Hub Res Res Acc Machines Accessed 104 | . 1 1 1 1 2 . 1 4 2 . 1 . . 13 2 . 4 1 . . 17 . . 2 . 4 10 3 . 11 17 3 3 Terminals 57 | . 1 . 1 . . . 1 2 . . . . . 7 . . . 1 . . 8 . . . . 3 10 3 . 9 10 . 1 Fabricators 13 | . . . . . . . . 2 . . . . . 3 . . . . . . 4 . . . . 1 . . . . 3 . . Repair Stations 1 | . . . . . . . . . . . . . . 1 . . . . . . . . . . . . . . . . . . . Recycling Units 1 | . . . . . . . . . . . . . . . . . . . . . 1 . . . . . . . . . . . . Scanalyzers 6 | . . . . . . . . . . . . . . 1 . . . . . . 2 . . . . . . . . . 3 . . Garrison Access 11 | . . . . . . . . . . . . . . 1 . . . . . . 2 . . . . . . . . 2 1 3 2 Total Hacks 328 | . 2 1 4 1 24 . 2 12 8 . 3 . . 37 5 . 27 1 . . 49 . . 3 . 11 20 8 . 38 60 5 7 Successful 247 | . 1 1 3 1 24 . 1 6 8 . 3 . . 27 5 . 27 1 . . 35 . . 3 . 6 17 5 . 26 41 3 3 Failed 81 | . 1 . 1 . . . 1 6 . . . . . 10 . . . . . . 14 . . . . 5 3 3 . 12 19 2 4 Catastrophic 5 | . . . . . . . . 2 . . . . . . . . . . . . . . . . . . . . . . 1 1 1 Database Lockouts . | . . . . . . . . . . . . . . . . . . . . . . . . . . . . . . . . . . Manual 101 | . . . 2 . 2 . . 8 . . 5 . . 13 . . . . . . 16 . . 1 . 4 14 2 . 18 15 1 . Terminals 181 | . 2 . 4 . . . 2 7 . . . . . 21 . . . 1 . . 28 . . . . 8 20 8 . 34 43 . 3 Fabricators 33 | . . . . . . . . 5 . . . . . 6 . . . . . . 12 . . . . 3 . . . . 7 . . Repair Stations 2 | . . . . . . . . . . . . . . 2 . . . . . . . . . . . . . . . . . . . Recycling Units 2 | . . . . . . . . . . . . . . . . . . . . . 2 . . . . . . . . . . . . Scanalyzers 19 | . . . . . . . . . . . . . . 5 . . . . . . 5 . . . . . . . . . 9 . . Garrison Access 19 | . . . . . . . . . . . . . . 3 . . . . . . 2 . . . . . . . . 4 1 5 4 Terminal Hacks 145 | . 1 1 2 1 24 . 1 1 8 . 3 . . 8 5 . 27 1 . . 11 . . 3 . 4 3 4 . 15 21 . 1 Record 59 | . . . 1 . 23 . . . 7 . . . . . 4 . 11 1 . . 1 . . 2 . 1 . 3 . 2 2 . 1 Part Schematic 11 | . . . . . . . . . . . 3 . . . . . 6 . . . . . . . . . . . . 1 1 . . Robot Schematic 9 | . . . . . . . . . . . . . . . . . 7 . . . . . . . . . . . . 1 1 . . Robot Analysis 4 | . . . . . . . . . . . . . . 2 . . . . . . 1 . . . . . . . . . 1 . . Prototype ID Bank 4 | . . . . . . . . . . . . . . 1 . . 3 . . . . . . . . . . . . . . . . Open Door 9 | . . 1 . 1 . . . . 1 . . . . . 1 . . . . . . . . 1 . 1 1 1 . . 1 . . Branch Access Points 5 | . 1 . . . . . . 1 . . . . . 1 . . . . . . 1 . . . . . . . . . 1 . . Emergency Access Points 1 | . . . . . . . . . . . . . . 1 . . . . . . . . . . . . . . . . . . . Machine Index 1 | . . . . . . . . . . . . . . . . . . . . . . . . . . . . . . 1 . . . Terminal Index 2 | . . . . . . . . . . . . . . . . . . . . . 1 . . . . . . . . . 1 . . Scanalyzer Index 1 | . . . . . . . . . . . . . . . . . . . . . . . . . . . . . . 1 . . . Alert Level 3 | . . . . . . . . . . . . . . . . . . . . . 1 . . . . . . . . 1 1 . . Unreport Threat 9 | . . . . . . . . . . . . . . 1 . . . . . . 2 . . . . . . . . 2 4 . . Locate Traps 7 | . . . . . . . . . . . . . . . . . . . . . 2 . . . . . 1 . . . 4 . . Security Status 1 | . . . . . . . . . . . . . . . . . . . . . . . . . . . . . . 1 . . . Transport Status 1 | . . . . . . . . . . . . . . . . . . . . . . . . . . . . . . . 1 . . Hauler Manifests 6 | . . . . . . . . . . . . . . 1 . . . . . . 1 . . . . 1 . . . 2 1 . . Registered Components 3 | . . . . . . . . . . . . . . 1 . . . . . . . . . . . . . . . 1 1 . . Zone Layout 8 | . . . 1 . . . 1 . . . . . . . . . . . . . 1 . . . . 1 1 . . 2 1 . . EX-Prototype ID Bank 1 | . . . . . 1 . . . . . . . . . . . . . . . . . . . . . . . . . . . . Fabricator Hacks 16 | . . . . . . . . 3 . . . . . 1 . . . . . . 6 . . . . 1 . . . . 5 . . Load Schematic 6 | . . . . . . . . . . . . . . . . . . . . . 3 . . . . 1 . . . . 2 . . Build 10 | . . . . . . . . 3 . . . . . 1 . . . . . . 3 . . . . . . . . . 3 . . Repair Station Hacks 2 | . . . . . . . . . . . . . . 2 . . . . . . . . . . . . . . . . . . . Scan Component 1 | . . . . . . . . . . . . . . 1 . . . . . . . . . . . . . . . . . . . Repair 1 | . . . . . . . . . . . . . . 1 . . . . . . . . . . . . . . . . . . . Recycling Unit Hacks . | . . . . . . . . . . . . . . . . . . . . . . . . . . . . . . . . . . Scanalyzer 15 | . . . . . . . . . . . . . . 5 . . . . . . 5 . . . . . . . . . 5 . . Insert Component 7 | . . . . . . . . . . . . . . 2 . . . . . . 2 . . . . . . . . . 3 . . Analyze 8 | . . . . . . . . . . . . . . 3 . . . . . . 3 . . . . . . . . . 2 . . Garrison Access Hacks 9 | . . . . . . . . . . . . . . 1 . . . . . . 1 . . . . . . . . 2 1 2 2 Unlock Access 1 | . . . . . . . . . . . . . . 1 . . . . . . . . . . . . . . . . . . . Seal Access 8 | . . . . . . . . . . . . . . . . . . . . . 1 . . . . . . . . 2 1 2 2 Unauthorized Hacks 60 | . . . 1 . . . . 2 . . . . . 10 . . . . . . 12 . . . . 1 14 1 . 9 9 1 . Terminals 49 | . . . 1 . . . . 2 . . . . . 6 . . . . . . 6 . . . . 1 14 1 . 9 9 . . Track 20 | . . . . . . . . . . . . . . 2 . . . . . . 2 . . . . . 8 1 . 3 4 . . Botnet 17 | . . . 1 . . . . 2 . . . . . 2 . . . . . . 3 . . . . . 2 . . 2 5 . . Detonate 1 | . . . . . . . . . . . . . . 1 . . . . . . . . . . . . . . . . . . . Disrupt 8 | . . . . . . . . . . . . . . 1 . . . . . . . . . . . . 3 . . 4 . . . Operators 2 | . . . . . . . . . . . . . . . . . . . . . 1 . . . . . 1 . . . . . . Sabotage 1 | . . . . . . . . . . . . . . . . . . . . . . . . . . 1 . . . . . . . Fabricators 5 | . . . . . . . . . . . . . . 2 . . . . . . 3 . . . . . . . . . . . . Report 1 | . . . . . . . . . . . . . . . . . . . . . 1 . . . . . . . . . . . . Haulers 2 | . . . . . . . . . . . . . . 1 . . . . . . 1 . . . . . . . . . . . . Overload 2 | . . . . . . . . . . . . . . 1 . . . . . . 1 . . . . . . . . . . . . Repair Stations . | . . . . . . . . . . . . . . . . . . . . . . . . . . . . . . . . . . Recycling Units 2 | . . . . . . . . . . . . . . . . . . . . . 2 . . . . . . . . . . . . Reject 1 | . . . . . . . . . . . . . . . . . . . . . 1 . . . . . . . . . . . . Recyclers 1 | . . . . . . . . . . . . . . . . . . . . . 1 . . . . . . . . . . . . Scanalyzers . | . . . . . . . . . . . . . . . . . . . . . . . . . . . . . . . . . . Garrison Access 4 | . . . . . . . . . . . . . . 2 . . . . . . 1 . . . . . . . . . . 1 . Broadcast 1 | . . . . . . . . . . . . . . 1 . . . . . . . . . . . . . . . . . . . Reprogram 1 | . . . . . . . . . . . . . . 1 . . . . . . . . . . . . . . . . . . . Jam 2 | . . . . . . . . . . . . . . . . . . . . . 1 . . . . . . . . . . 1 . Data Cores Recovered 1 | . . . . . . . . . . . . . . . . . . . . . 1 . . . . . . . . . . . . Used . | . . . . . . . . . . . . . . . . . . . . . . . . . . . . . . . . . . Hacking Detections 66 | . 1 . 1 . . . 1 4 . . . . . 11 . . . . . . 12 . . . . 3 3 3 . 10 14 1 2 Full Trace Events 7 | . . . . . . . . . . . . . . 1 . . . . . . 2 . . . . 1 1 . . . 2 . . Feedback Events 2 | . . . . . . . . . . . . . . 1 . . . . . . . . . . . . . . . . 1 . . Corruption 2 | . . . . . . . . . . . . . . 1 . . . . . . . . . . . . . . . . 1 . . Feedback Blocked . | . . . . . . . . . . . . . . . . . . . . . . . . . . . . . . . . . . Robot Schematics Acquired 9 | . . . . . . . . . . . . . . . . . 7 . . . . . . . . . . . . 1 1 . . Robots Built . | . . . . . . . . . . . . . . . . . . . . . . . . . . . . . . . . . . Matter . | . . . . . . . . . . . . . . . . . . . . . . . . . . . . . . . . . . Time . | . . . . . . . . . . . . . . . . . . . . . . . . . . . . . . . . . . Total Robot Build Rating . | . . . . . . . . . . . . . . . . . . . . . . . . . . . . . . . . . . Part Schematics Acquired 17 | . . . . . . . . . . . 3 . . 2 . . 6 . . . 2 . . . . . . . . 1 3 . . Parts Built 6 | . . . . . . . . 2 . . . . . 1 . . . . . . 1 . . . . . . . . . 2 . . Matter 2219 | . . . . . . . . 570 . . . . . 212 . . . . . . 285 . . . . . . . . . 1152 . . Time 757 | . . . . . . . . 152 . . . . . 53 . . . . . . 76 . . . . . . . . . 476 . . Total Part Build Rating 37 | . . . . . . . . 10 . . . . . 6 . . . . . . 5 . . . . . . . . . 16 . . Parts Repaired 1 | . . . . . . . . . . . . . . 1 . . . . . . . . . . . . . . . . . . . Time 22 | . . . . . . . . . . . . . . 22 . . . . . . . . . . . . . . . . . . . Parts Recycled . | . . . . . . . . . . . . . . . . . . . . . . . . . . . . . . . . . . Recycled Matter . | . . . . . . . . . . . . . . . . . . . . . . . . . . . . . . . . . . Retrieved Matter . | . . . . . . . . . . . . . . . . . . . . . . . . . . . . . . . . . . Retrieved Components . | . . . . . . . . . . . . . . . . . . . . . . . . . . . . . . . . . . Parts Scanalyzed 6 | . . . . . . . . . . . . . . 2 . . . . . . 2 . . . . . . . . . 2 . . Part Schematics Acquired 6 | . . . . . . . . . . . . . . 2 . . . . . . 2 . . . . . . . . . 2 . . Parts Damaged 2 | . . . . . . . . . . . . . . 1 . . . . . . . . . . . . . . . . 1 . . Bothacking | -11 -10 -10 -9 -9 -9 -8 -8 -7 -7 -7 -7 -7 -6 -6 -6 -6 -6 -5 -5 -5 -5 -5 -5 -5 -4 -4 -4 -4 -4 -4 -3 -2 -1 ------------ Run | Scr Mat Min Mat Min Exi Min Mat Fac Low Low Zio Dee Pro Fac Low Low Dat Pro Fac Was Fac Upp Upp War Pro Fac Ext Cet Arc Hub Res Res Acc Used RIF Installer . | . . . . . . . . . . . . . . . . . . . . . . . . . . . . . . . . . . Robots Hacked . | . . . . . . . . . . . . . . . . . . . . . . . . . . . . . . . . . . Non-combat . | . . . . . . . . . . . . . . . . . . . . . . . . . . . . . . . . . . Combat . | . . . . . . . . . . . . . . . . . . . . . . . . . . . . . . . . . . Robot Hacks Applied . | . . . . . . . . . . . . . . . . . . . . . . . . . . . . . . . . . . Relay Couplers Released 2 | . . . . . . . . . . . . . . . . . . . . . . . . . . . . . . . . . 2 Programmers 2 | . . . . . . . . . . . . . . . . . . . . . . . . . . . . . . . . . 2 Robots Rewired 18 | . . . . . 3 . . . . . . . . 1 . 3 . . . . . . . 5 . . 6 . . . . . . Allies Hacked 1 | . . . . . . . . . . . . . . 1 . . . . . . . . . . . . . . . . . . . Hacks Repelled . | . . . . . . . . . . . . . . . . . . . . . . . . . . . . . . . . . . Allies | -11 -10 -10 -9 -9 -9 -8 -8 -7 -7 -7 -7 -7 -6 -6 -6 -6 -6 -5 -5 -5 -5 -5 -5 -5 -4 -4 -4 -4 -4 -4 -3 -2 -1 -------- Run | Scr Mat Min Mat Min Exi Min Mat Fac Low Low Zio Dee Pro Fac Low Low Dat Pro Fac Was Fac Upp Upp War Pro Fac Ext Cet Arc Hub Res Res Acc Total Allies 63 | . . 2 . . 3 . . . . . . . . 4 2 3 . 1 . 20 . . . 5 . . 18 5 . . . . . Largest Group 23 | . . 2 2 2 3 3 3 3 . . . . . 4 2 3 3 4 3 23 23 . . 5 4 4 10 12 11 9 . . . Highest-Rated Group 937 | . . 45 45 45 45 37 37 37 . . . . . 128 62 93 93 187 156 937 937 . . 286 240 240 504 878 784 550 . . . Highest-Rated Ally 156 | . . 31 31 31 31 21 21 21 . . . . . 41 31 31 31 94 94 94 94 . . 60 60 60 156 140 140 94 . . . Total Orders 9 | . . . . . . . . . . . 3 . . . . . . . . . . . . 6 . . . . . . . . . STAY 4 | . . . . . . . . . . . . . . . . . . . . . . . . 4 . . . . . . . . . FOLLOW 2 | . . . . . . . . . . . . . . . . . . . . . . . . 2 . . . . . . . . . RETURN 3 | . . . . . . . . . . . 3 . . . . . . . . . . . . . . . . . . . . . . Ally Attacks 495 | . . . 14 1 . . 11 8 . . 30 . . 15 . . . 28 1 18 139 . . 2 . . 117 30 18 59 . . 4 Total Damage 13246 | . . . 214 22 . . 168 104 . . 123 . . 216 . . . 490 45 444 4453 . . 7 . . 3835 683 619 1814 . . 9 Kills 101 | . . . 5 1 . . 3 2 . . 1 . . 1 . . . 8 1 1 31 . . . . . 24 6 4 13 . . . Allies Corrupted 9 | . . . . . . . . . . . . . . 2 . . . . . . 3 . . . . . 1 . . 3 . . . Allies Melted . | . . . . . . . . . . . . . . . . . . . . . . . . . . . . . . . . . . Intel | -11 -10 -10 -9 -9 -9 -8 -8 -7 -7 -7 -7 -7 -6 -6 -6 -6 -6 -5 -5 -5 -5 -5 -5 -5 -4 -4 -4 -4 -4 -4 -3 -2 -1 ------- Run | Scr Mat Min Mat Min Exi Min Mat Fac Low Low Zio Dee Pro Fac Low Low Dat Pro Fac Was Fac Upp Upp War Pro Fac Ext Cet Arc Hub Res Res Acc Robot Analysis Total 4 | . . . . . . . . . . . . . . 2 . . . . . . 1 . . . . . . . . . 1 . . Derelict Logs Recovered 17 | . . . . 2 . . . . . 1 3 . 1 . 2 2 . 1 . . . 3 1 . 1 . . . . . . . . Drone Launches 17 | . . . . . . . . . . . 13 . . . . . . . . . . . . . . . . . . . . . 4 Drone Recoveries 14 | . . . . . . . . . . . 13 . . . . . . . . . . . . . . . . . . . . . 1 Exploration | -11 -10 -10 -9 -9 -9 -8 -8 -7 -7 -7 -7 -7 -6 -6 -6 -6 -6 -5 -5 -5 -5 -5 -5 -5 -4 -4 -4 -4 -4 -4 -3 -2 -1 ------------- Run | Scr Mat Min Mat Min Exi Min Mat Fac Low Low Zio Dee Pro Fac Low Low Dat Pro Fac Was Fac Upp Upp War Pro Fac Ext Cet Arc Hub Res Res Acc Turns Passed 17764 | 63 127 147 258 280 415 156 343 908 426 163 1028 325 483 1076 435 811 83 708 36 370 981 463 224 578 348 459 917 200 61 399 1404 1726 1363 Spaces Moved 22862 | 52 96 143 197 267 366 148 412 866 691 372 1517 578 655 1468 698 640 78 639 29 267 1376 829 387 935 783 613 1010 150 78 735 2198 2113 1476 Core 21 | 21 . . . . . . . . . . . . . . . . . . . . . . . . . . . . . . . . . Treads . | . . . . . . . . . . . . . . . . . . . . . . . . . . . . . . . . . . Legs . | . . . . . . . . . . . . . . . . . . . . . . . . . . . . . . . . . . Wheels 1262 | 31 96 143 197 267 366 148 14 . . . . . . . . . . . . . . . . . . . . . . . . . . Hover 9442 | . . . . . . . 398 866 691 372 1517 578 655 1468 698 640 78 639 29 267 546 . . . . . . . . . . . . Flight 12137 | . . . . . . . . . . . . . . . . . . . . . 830 829 387 935 783 613 1010 150 78 735 2198 2113 1476 Fastest Speed 27 | 50 90 90 85 90 90 100 48 43 43 43 43 43 43 43 45 101 101 101 101 106 27 27 27 27 29 29 29 29 29 29 29 29 34 Average Speed 44 | 72 90 90 89 91 96 100 52 43 43 43 43 43 43 44 53 101 101 101 102 106 45 27 27 27 29 29 29 29 29 29 29 32 34 Slowest Speed 125 | 90 90 90 100 100 100 100 125 48 43 43 43 43 43 45 101 101 101 101 106 110 109 27 27 95 29 29 103 29 29 29 29 34 34 Overloaded Moves . | . . . . . . . . . . . . . . . . . . . . . . . . . . . . . . . . . . Propulsion Burnouts . | . . . . . . . . . . . . . . . . . . . . . . . . . . . . . . . . . . Robots Hopped 70 | . . . . . . . . . . . . . . . . . . . . . 9 1 . 2 . 2 9 . . 5 35 3 4 Cave-ins Triggered 3 | . . . . . . . . . . . . . . . . . . . . . . . . . . . . . . . . 2 1 Exploration Rate (%) 59 | 4 28 40 22 60 85 56 34 19 69 71 88 71 74 46 77 80 68 89 3 97 49 85 66 86 88 17 84 71 75 78 59 48 38 Regions Visited 33 Branch Regions 21 Pre-discovered Areas 10 | . . . . . 1 . . . 2 . 3 . . . . . 1 1 . . . 1 1 . . . . . . . . . . Known Exits Taken 14 | . 1 . . . . . 1 1 . 1 . . . 1 . 1 . . . . 1 . . . . 1 1 1 1 1 1 1 . Unknown Exits Taken 17 | 1 . 1 1 1 1 1 . . 1 . 1 1 1 . 1 . 1 1 . . . 1 1 1 1 . . . . . . . . Scrap Searched 26 | . . . . 3 . 1 . . 1 2 3 . 3 . 2 1 . 4 . . . 3 1 . 2 . . . . . . . . Spaces Dug 148 | . . . . . . . 19 . . . . . 3 1 2 1 . . . . 14 3 . . 6 . . . . 2 26 19 52 Terrain Destroyed 1559 | . . . . . . . 59 . . . 3 28 5 230 5 14 . 2 2 . 93 12 11 71 14 133 83 3 2 7 112 260 410 Melee 26 | . . . . . . . . . . . . . 3 . . . . . . . . . . . . . . . . 2 13 3 5 Projectile 728 | . . . . . . . . . . . . . . 13 5 9 . 2 2 . 52 12 4 20 14 59 73 3 2 5 66 173 214 AOE 805 | . . . . . . . 59 . . . 3 28 2 217 . 5 . . . . 41 . 7 51 . 74 10 . . . 33 84 191 Terrain Rammed . | . . . . . . . . . . . . . . . . . . . . . . . . . . . . . . . . . . Walls Destroyed . | . . . . . . . . . . . . . . . . . . . . . . . . . . . . . . . . . . Machines Disabled . | . . . . . . . . . . . . . . . . . . . . . . . . . . . . . . . . . . Actions | -11 -10 -10 -9 -9 -9 -8 -8 -7 -7 -7 -7 -7 -6 -6 -6 -6 -6 -5 -5 -5 -5 -5 -5 -5 -4 -4 -4 -4 -4 -4 -3 -2 -1 --------- Run | Scr Mat Min Mat Min Exi Min Mat Fac Low Low Zio Dee Pro Fac Low Low Dat Pro Fac Was Fac Upp Upp War Pro Fac Ext Cet Arc Hub Res Res Acc Total 28452 | 68 116 157 258 301 417 156 512 1383 796 374 1740 633 807 1770 738 751 82 688 34 354 1585 1028 490 1197 872 785 1441 292 110 850 2773 2813 2081 Wait 2728 | 8 3 11 16 25 20 9 53 463 74 1 48 12 78 164 11 25 5 17 2 61 36 136 76 131 71 70 263 124 27 50 341 75 222 Move 22698 | 51 95 142 196 266 365 147 411 865 690 371 1516 577 654 1467 697 639 77 638 29 266 1358 826 386 930 782 608 995 149 77 724 2131 2105 1468 Hop 59 | . . . . . . . . . . . . . . . . . . . . . 8 1 . 2 . 2 5 . . 5 31 2 3 Pick Up 32 | . . 1 . 2 1 . . 2 . 1 2 . . 3 2 . . 2 . 1 3 1 . 1 . 1 1 . . . 5 3 . Fast Attach 182 | 6 . 1 7 1 3 . 6 10 4 . 9 7 1 10 3 . . . 1 9 19 3 . 16 . 6 9 1 . 6 24 15 5 Attach 11 | . . . . . . . . . . . . . 1 . 1 . . 1 . . 2 . . . . . . . . . . 4 2 Detach 31 | . . . 5 1 . . . . . . . . 1 1 . . . . 1 . 6 1 . 3 . . 2 . . 1 4 5 . Swap 71 | . . . 2 . . . 9 1 . . 6 1 4 3 . . . . . . 5 2 . 2 1 . 6 1 . 2 9 13 4 Drop 187 | . . . 9 2 2 . 6 9 4 1 11 7 . 13 4 . . 1 . 10 23 2 . 17 . 6 7 1 . 3 27 18 4 Fire 1292 | 3 11 2 12 2 5 . 20 10 14 . 122 17 36 70 12 40 . 10 1 . 83 12 13 44 15 64 74 10 4 10 81 255 240 Melee 199 | . . . . . . . . . . . 7 . 8 . . . . . . . . 11 . . . . 30 . . 33 52 40 18 Ram . | . . . . . . . . . . . . . . . . . . . . . . . . . . . . . . . . . . Kick . | . . . . . . . . . . . . . . . . . . . . . . . . . . . . . . . . . . Crush . | . . . . . . . . . . . . . . . . . . . . . . . . . . . . . . . . . . Escape Stasis 77 | . . . . . . . . 19 . . . . . . . . . . . . . . . . . . . . . . 27 14 17 Rewire 90 | . . . . . 21 . . . . . . . 1 12 . 12 . . . . . . . 24 . . 19 . . . . . 1 Trap . | . . . . . . . . . . . . . . . . . . . . . . . . . . . . . . . . . . Miscellaneous 795 | . 7 . 11 2 . . 7 4 10 . 19 12 23 27 8 35 . 19 . 7 42 33 15 27 3 28 30 6 2 16 41 264 97 Route ------- -11/Scrapyard -10/Materials (discovered 2 exits: *Min x2) -10/Mines -9/Materials -9/Mines (discovered 3 exits: *Mat x2 / *Exi) -9/Exiles -8/Mines -8/Materials (discovered 2 exits: *Fac x2) -7/Factory (discovered 4 exits: *Sto x2 / *Low x2) -7/Lower Caves -7/Lower Caves (discovered 2 exits: *Fac / *Zio) -7/Zion (discovered 2 exits: [*Dee] / [*Pro]) -7/Deep Caves -6/Proximity Caves -6/Factory (discovered 6 exits: [*Fac x3] / *Low x2 / Gar) -6/Lower Caves (discovered 2 exits: [*Low] / *Dat) -6/Lower Caves (discovered 2 exits: [*Fac] / *Dat) -6/Data Miner -5/Proximity Caves -5/Factory -5/Waste -5/Factory (discovered 2 exits: *Upp x2) -5/Upper Caves -5/Upper Caves (discovered 2 exits: *Fac / *War) -5/Warlord -4/Proximity Caves -4/Factory (discovered 5 exits: Res x3 / [Upp] / *Ext) -4/Extension (discovered 3 exits: *Res x2 / *Cet) -4/Cetus -4/Archives (discovered 3 exits: Res / *Hub x2) -4/Hub_04(d) (discovered 3 exits: *Res x3) -3/Research (discovered 4 exits: *Res / Arm / *Qua x2) -2/Research (discovered 3 exits: *Acc x2 / *Tes) -1/Access (discovered 1 exit: *Sur) History --------- Turn | Location | Event 16 | -11/Scrapyard | Upgraded with Propulsion slot (x1) 16 | -11/Scrapyard | Upgraded with Utility slot (x1) 16 | -11/Scrapyard | Upgraded with Weapon slot (x1) 27 | -11/Scrapyard | Discovered new exit (range 16) 64 | -11/Scrapyard | Entered Materials 148 | -10/Materials | Identified exit to Mines 191 | -10/Materials | Entered Mines 195 | -10/Mines | Met a Derelict who couldn't figure out how to use a Trap Extractor 297 | -10/Mines | Discovered new exit (range 13) 301 | -10/Mines | Build established: Mutant 338 | -10/Mines | Entered Materials 338 | -9/Materials | Accompanied by 2 allies 340 | -9/Materials | Reached level 2 343 | -9/Materials | Led the pair of lost Derelicts to an unsafe place 486 | -9/Materials | Reached level 3 509 | -9/Materials | Discovered new exit (range 15) 596 | -9/Materials | Entered Mines 596 | -9/Mines | Accompanied by 2 allies 625 | -9/Mines | Learned 8 Materials zone layouts 640 | -9/Mines | Upgraded with Utility slot (x1) 697 | -9/Mines | Received a Rocket Launcher from a helpful Derelict 716 | -9/Mines | Learned location of 1 exit from Materials 720 | -9/Mines | Discovered new exit (range 6) 778 | -9/Mines | Found the Drone Emporium 782 | -9/Mines | Found Prototype Device 782 | -9/Mines | Identified Thief Drone Bay 826 | -9/Mines | Discovered new exit (range 5) 848 | -9/Mines | Deemed a non-threat by the Exiles lab entrance 849 | -9/Mines | Discovered new exit (range 5) 876 | -9/Mines | Entered Exiles 876 | -9/Exiles | Found Exiles lab destroyed 876 | -9/Exiles | Accompanied by 2 allies 878 | -9/Exiles | Reached level 4 906 | -9/Exiles | Led the pair of lost Derelicts to a safe place 1005 | -9/Exiles | Upgraded with Propulsion slot (x1) 1084 | -9/Exiles | Learned location of Zion (-7) 1165 | -9/Exiles | Opened EX-Vault 1171 | -9/Exiles | Found Prototype Energy Cannon 1171 | -9/Exiles | Identified Latent Energy Streamer 1269 | -9/Exiles | Discovered new exit (range 10) 1291 | -9/Exiles | Entered Mines 1291 | -8/Mines | Accompanied by 3 allies 1422 | -8/Mines | Discovered new exit (range 11) 1447 | -8/Mines | Entered Materials 1447 | -8/Materials | Accompanied by 3 allies 1448 | -8/Materials | Identified exit to Factory 1449 | -8/Materials | Reached level 5 1639 | -8/Materials | Reached level 6 1667 | -8/Materials | Discovered exit to Factory (range 5) 1723 | -8/Materials | Garrison activated, responded to threat 1790 | -8/Materials | Entered Factory 1790 | -7/Factory | Accompanied by 3 allies 1792 | -7/Factory | Reached level 7 1792 | -7/Factory | Upgraded with Power slot (x1) 1792 | -7/Factory | Upgraded with Propulsion slot (x1) 1792 | -7/Factory | Upgraded with Utility slot (x1) 1943 | -7/Factory | Reached level 8 2095 | -7/Factory | Fabricated F-cell Engine (x1) 2173 | -7/Factory | Fabricated F-cell Engine? 2292 | -7/Factory | Local fabrication network quarantined 2306 | -7/Factory | Identified exit to Storage 2306 | -7/Factory | Identified exit to Lower Caves 2698 | -7/Factory | Entered Lower Caves 2705 | -7/Lower Caves | Acquired the password to a Derelict Tinkerer's latest research 2766 | -7/Lower Caves | Learned Armory stockpile data 2766 | -7/Lower Caves | Learned Extension garrison access intel 2962 | -7/Lower Caves | Caught by Unaware searching for contraband prototypes 3018 | -7/Lower Caves | Discovered new exit (range 5) 3124 | -7/Lower Caves | Entered another Lower Caves area 3126 | -7/Lower Caves | Reached level 9 3139 | -7/Lower Caves | Discovered new exit (range 5) 3208 | -7/Lower Caves | Identified exit to Zion 3287 | -7/Lower Caves | Entered Zion 3316 | -7/Zion | Discovered new exit (range 11) 3342 | -7/Zion | System corruption cleaned by Quarantine Array 3380 | -7/Zion | Found Prototype Launcher 3380 | -7/Zion | Identified Rocket Array 3441 | -7/Zion | Learned location of Warlord (-5) 3543 | -7/Zion | Discovered new exit (range 12) 3648 | -7/Zion | Learned location of Quarantine (-3) 3674 | -7/Zion | Given A8's code to call for help 3703 | -7/Zion | Learned location of Data Miner (-6) 3786 | -7/Zion | Attacked by Zionites 4261 | -7/Zion | Allies destroyed Imprinter 4264 | -7/Zion | Extracted access codes from Imprinter's data core 4307 | -7/Zion | Opened final containment barrier to the Deep Caves 4314 | -7/Zion | Saw the warning signs outside the Deep Caves entrance 4315 | -7/Zion | Entered Deep Caves 4317 | -7/Deep Caves | Reached level 10 4390 | -7/Deep Caves | Z-Facility disabled 4473 | -7/Deep Caves | Found Prototype Protection 4473 | -7/Deep Caves | Identified Zio. Weapon Casing 4636 | -7/Deep Caves | Discovered new exit (range 7) 4640 | -7/Deep Caves | Entered Proximity Caves 4642 | -6/Proximity Caves | Reached level 11 4644 | -6/Proximity Caves | Upgraded with Utility slot (x1) 4706 | -6/Proximity Caves | Learned Factory terminal intel 4709 | -6/Proximity Caves | Spotted B-75 Beast 4839 | -6/Proximity Caves | Attracted the attention of an 0b10 checkpoint 4947 | -6/Proximity Caves | Core integrity fell below 50% 5009 | -6/Proximity Caves | Build established: Derelict-Scout 5055 | -6/Proximity Caves | Reached level 12 5089 | -6/Proximity Caves | Discovered new exit (range 12) 5123 | -6/Proximity Caves | Entered Factory 5124 | -6/Factory | Loaded intel: 20 terminal locations 5125 | -6/Factory | Reached level 13 5125 | -6/Factory | Upgraded with Utility slot (x1) 5125 | -6/Factory | Upgraded with Weapon slot (x1) 5177 | -6/Factory | Discovered new exit (range 15) 5219 | -6/Factory | Identified exit to Garrison 5290 | -6/Factory | Identified exit to Lower Caves 5447 | -6/Factory | Build established: Mutant 5499 | -6/Factory | Reached level 14 5620 | -6/Factory | Reached level 15 5660 | -6/Factory | Destroyed 7 combat bots 5710 | -6/Factory | Discovered new exit (range 16) 5890 | -6/Factory | Reached level 16 6048 | -6/Factory | Fabricated Imp. Kinecellerator (x1) 6067 | -6/Factory | Discovered new exit (range 13) 6107 | -6/Factory | Repaired Energy Filter 6199 | -6/Factory | Entered Lower Caves 6201 | -6/Lower Caves | Reached level 17 6253 | -6/Lower Caves | Upgraded with Utility slot (x1) 6284 | -6/Lower Caves | A Derelict revealed a hidden shortcut to meet someone special 6317 | -6/Lower Caves | Encountered a Warlord checkpoint 6321 | -6/Lower Caves | Learned Factory emergency access door positions 6413 | -6/Lower Caves | Discovered new exit (range 8) 6473 | -6/Lower Caves | A Commander dispatched an escort 6477 | -6/Lower Caves | Learned Armory trap positions 6477 | -6/Lower Caves | Learned Research emergency access door positions 6477 | -6/Lower Caves | Learned Extension terminal intel 6634 | -6/Lower Caves | Entered another Lower Caves area 6634 | -6/Lower Caves | Accompanied by 2 allies 6635 | -6/Lower Caves | Commander's escort returned to base 6635 | -6/Lower Caves | Commander's escort returned to base 6650 | -6/Lower Caves | Learned Factory stockpile data 6673 | -6/Lower Caves | Discovered new exit (range 24) 6752 | -6/Lower Caves | Encountered a Warlord checkpoint 6840 | -6/Lower Caves | Identified exit to Data Miner 7076 | -6/Lower Caves | Reached level 18 7384 | -6/Lower Caves | Attacked by a delusional Derelict stockpiling Unaware 7445 | -6/Lower Caves | Entered Data Miner 7445 | -6/Data Miner | Accompanied by 3 allies 7445 | -6/Data Miner | Discovered new exit (range 6) 7465 | -6/Data Miner | Met Data Miner 7485 | -6/Data Miner | Learned location of Section 7 (-2) 7485 | -6/Data Miner | Acquired the access code to Warlord's prototype stash 7499 | -6/Data Miner | Received God Mode back door access code from Data Miner 7528 | -6/Data Miner | Entered Proximity Caves 7528 | -5/Proximity Caves | Accompanied by 3 allies 7530 | -5/Proximity Caves | Reached level 19 7535 | -5/Proximity Caves | Upgraded with Utility slot (x1) 7676 | -5/Proximity Caves | Build established: Skirmisher 7735 | -5/Proximity Caves | Attracted the attention of an 0b10 checkpoint 7736 | -5/Proximity Caves | Escorted by Enhanced Grunt 7845 | -5/Proximity Caves | Reached level 20 8097 | -5/Proximity Caves | Discovered new exit (range 15) 8236 | -5/Proximity Caves | Entered Factory 8236 | -5/Factory | Accompanied by 3 allies 8237 | -5/Factory | Identified exit to Upper Caves 8238 | -5/Factory | Reached level 21 8238 | -5/Factory | Upgraded with Propulsion slot (x1) 8272 | -5/Factory | Sucked down chute 8272 | -5/Factory | Entered Waste 8273 | -5/Waste | Joined by Warlord forces that had cleared the area 8300 | -5/Waste | 1 allies followed down the chute 8301 | -5/Waste | Found Prototype Device 8301 | -5/Waste | Identified Exp. Shield Generator 8355 | -5/Waste | 2 allies followed down the chute 8447 | -5/Waste | Discovered new exit (range 12) 8480 | -5/Waste | A Compactor rumbled back to life 8480 | -5/Waste | Spotted C-40 Crusher 8486 | -5/Waste | Allies destroyed C-40 Crusher 8642 | -5/Waste | Entered Factory 8642 | -5/Factory | Accompanied by 23 allies 8925 | -5/Factory | Reached level 22 8942 | -5/Factory | First assault squad dispatched 8970 | -5/Factory | Incoming assault squad redirected 9002 | -5/Factory | Garrison activated, responded to threat 9076 | -5/Factory | Reached level 23 9080 | -5/Factory | Upgraded with Propulsion slot (x1) 9177 | -5/Factory | Fabricated Exp. Terrain Scanner (x1) 9192 | -5/Factory | Found Powered Armor 9195 | -5/Factory | Incoming investigation squad redirected 9212 | -5/Factory | Build established: Hacker-Scout 9277 | -5/Factory | Incoming investigation squad redirected 9565 | -5/Factory | Incoming investigation squad redirected 9623 | -5/Factory | Entered Upper Caves 9629 | -5/Upper Caves | Learned 4 Factory zone layouts 9648 | -5/Upper Caves | Attracted the attention of an 0b10 checkpoint 9667 | -5/Upper Caves | Learned 4 Factory zone layouts 9674 | -5/Upper Caves | Learned location of Armory (-3) 9862 | -5/Upper Caves | Spotted B-75 Beast 10083 | -5/Upper Caves | Discovered new exit (range 9) 10086 | -5/Upper Caves | Entered another Upper Caves area 10095 | -5/Upper Caves | Reached level 24 10146 | -5/Upper Caves | Discovered new exit (range 8) 10175 | -5/Upper Caves | Destroyed 8 combat bots 10201 | -5/Upper Caves | Discovered new exit (range 9) 10310 | -5/Upper Caves | Entered Warlord 10314 | -5/Warlord | System corruption reached 10% 10319 | -5/Warlord | System corruption cleaned by Quarantine Array 10436 | -5/Warlord | Visited the Vortex Lab 10439 | -5/Warlord | Found Prototype Launcher 10439 | -5/Warlord | Identified Vortex Catalyst Activator 10447 | -5/Warlord | Found Prototype Energy Cannon 10447 | -5/Warlord | Identified Vortex Driver 10458 | -5/Warlord | Warlord's base attacked by MAIN.C 10551 | -5/Warlord | Met Warlord 10555 | -5/Warlord | Opened Warlord's prototype stash 10559 | -5/Warlord | Found Prototype Reactor 10559 | -5/Warlord | Identified Vortex Chain Reactor 10564 | -5/Warlord | Found Prototype Device 10564 | -5/Warlord | Identified Exp. Phase Shifter 10567 | -5/Warlord | Found Prototype Hackware 10567 | -5/Warlord | Identified Ghost Barrier 10572 | -5/Warlord | Found Prototype Processor 10572 | -5/Warlord | Identified Spectral Analyzer 10574 | -5/Warlord | Found Prototype Device 10574 | -5/Warlord | Identified Exp. Focal Shield 10661 | -5/Warlord | Warlord forces counterattacked 10677 | -5/Warlord | Destroyed 20 combat bots 10763 | -5/Warlord | Discovered new exit (range 15) 10763 | -5/Warlord | Spotted Striker 10782 | -5/Warlord | Destroyed Striker 10847 | -5/Warlord | Build established: Hacker-Sprinter 10864 | -5/Warlord | Spotted Executioner 10864 | -5/Warlord | Spotted Striker 10864 | -5/Warlord | Destroyed Executioner 10866 | -5/Warlord | Destroyed Striker 10887 | -5/Warlord | Destroyed 11 combat bots 10888 | -5/Warlord | Entered Proximity Caves 10888 | -4/Proximity Caves | Accompanied by 4 allies 10890 | -4/Proximity Caves | Reached level 25 10997 | -4/Proximity Caves | Learned location of 1 exit from Upper Caves 11133 | -4/Proximity Caves | Spotted B-86 Titan 11155 | -4/Proximity Caves | Destroyed B-86 Titan 11172 | -4/Proximity Caves | Discovered new exit (range 28) 11208 | -4/Proximity Caves | Build established: Hacker-Scout 11236 | -4/Proximity Caves | Entered Factory 11236 | -4/Factory | Accompanied by 4 allies 11237 | -4/Factory | Identified exit to Research 11291 | -4/Factory | Garrison activated, responded to threat 11297 | -4/Factory | Reached level 26 11331 | -4/Factory | Destroyed 9 combat bots 11337 | -4/Factory | Upgraded with Utility slot (x1) 11365 | -4/Factory | Incoming investigation squad redirected 11400 | -4/Factory | Discovered exit to Research (range 18) 11486 | -4/Factory | First assault squad dispatched 11503 | -4/Factory | Discovered new exit (range 17) 11540 | -4/Factory | Discovered new exit (range 29) 11679 | -4/Factory | Discovered exit to Research (range 19) 11687 | -4/Factory | Identified exit to Extension 11695 | -4/Factory | Entered Extension 11695 | -4/Extension | Accompanied by 3 allies 11696 | -4/Extension | Loaded intel: 12 terminal locations 11810 | -4/Extension | Incoming investigation squad redirected 11856 | -4/Extension | Rescued a captive Derelict 11859 | -4/Extension | Rescued a captive Derelict 11871 | -4/Extension | Rescued a captive Derelict 11875 | -4/Extension | Rescued a captive Derelict 11970 | -4/Extension | Disrupted transfer network 12098 | -4/Extension | Reached level 27 12129 | -4/Extension | Build established: Commander-Scout 12195 | -4/Extension | First assault squad dispatched 12214 | -4/Extension | Incoming assault squad redirected 12272 | -4/Extension | Spotted B-86 Titan 12282 | -4/Extension | Spotted B-86 Titan 12285 | -4/Extension | Destroyed B-86 Titan 12295 | -4/Extension | Allies destroyed B-86 Titan 12311 | -4/Extension | Discovered exit to Research (range 4) 12360 | -4/Extension | Rescued a captive Derelict 12361 | -4/Extension | Rescued a captive Derelict 12424 | -4/Extension | Rescued A7 12455 | -4/Extension | Rescued a captive Derelict 12466 | -4/Extension | Incoming assault squad redirected 12481 | -4/Extension | Incoming assault squad redirected 12533 | -4/Extension | High security lockdown imminent 12539 | -4/Extension | Rescued a captive Derelict 12540 | -4/Extension | Rescued a captive Derelict 12567 | -4/Extension | Rescued a captive Derelict 12567 | -4/Extension | Rescued a captive Derelict 12571 | -4/Extension | Destroyed 8 combat bots 12578 | -4/Extension | Discovered exit to Research (range 10) 12578 | -4/Extension | Discovered new exit (range 6) 12580 | -4/Extension | Identified exit to Cetus 12612 | -4/Extension | Build established: Hacker-Scout 12612 | -4/Extension | Entered Cetus 12612 | -4/Cetus | Accompanied by 9 allies (A7) 12617 | -4/Cetus | Acquired a Cetus Manufacturing Module code from A7 12617 | -4/Cetus | Spotted Cetus Guard 12617 | -4/Cetus | Spotted Cetus Guard 12622 | -4/Cetus | Spotted Cetus Guard 12624 | -4/Cetus | Allies destroyed Cetus Guard 12626 | -4/Cetus | Spotted Cetus Guard 12634 | -4/Cetus | Allies destroyed Cetus Guard 12635 | -4/Cetus | Allies destroyed Cetus Guard 12639 | -4/Cetus | Allies destroyed Cetus Guard 12668 | -4/Cetus | Started Cetus Manufacturing Module 12685 | -4/Cetus | Discovered new exit (range 26) 12690 | -4/Cetus | Escorted A7 to Cetus Mainframe 12693 | -4/Cetus | Manufactured an Enhanced Grunt 12715 | -4/Cetus | Identified exit to Archives 12718 | -4/Cetus | Manufactured an Enhanced Grunt 12743 | -4/Cetus | Manufactured an Enhanced Grunt 12768 | -4/Cetus | Manufactured an Enhanced Grunt 12793 | -4/Cetus | Manufactured an Enhanced Grunt 12812 | -4/Cetus | Entered Archives 12812 | -4/Archives | Accompanied by 11 allies (A7) 12814 | -4/Archives | Reached level 28 12817 | -4/Archives | Received a hacking code to weaken MAIN.C 12820 | -4/Archives | Discovered new exit (range 25) 12824 | -4/Archives | Discovered exit to Research (range 20) 12824 | -4/Archives | Discovered new exit (range 29) 12840 | -4/Archives | Identified exit to Hub_04(d) 12873 | -4/Archives | Entered Hub_04(d) 12873 | -4/Hub_04(d) | Accompanied by 9 allies 12894 | -4/Hub_04(d) | Discovered exit to Research (range 22) 12978 | -4/Hub_04(d) | Discovered exit to Research (range 16) 13183 | -4/Hub_04(d) | Discovered exit to Research (range 15) 13243 | -4/Hub_04(d) | Network Hub disabled 13243 | -4/Hub_04(d) | Spotted Lightning 13243 | -4/Hub_04(d) | Spotted Lightning 13244 | -4/Hub_04(d) | Spotted Lightning 13245 | -4/Hub_04(d) | Spotted Lightning 13246 | -4/Hub_04(d) | Spotted Lightning 13246 | -4/Hub_04(d) | Spotted Lightning 13246 | -4/Hub_04(d) | Spotted Lightning 13246 | -4/Hub_04(d) | Spotted Lightning 13247 | -4/Hub_04(d) | Spotted Lightning 13248 | -4/Hub_04(d) | Destroyed Lightning 13248 | -4/Hub_04(d) | Spotted Lightning 13248 | -4/Hub_04(d) | Spotted Lightning 13249 | -4/Hub_04(d) | Spotted Lightning 13270 | -4/Hub_04(d) | System corruption reached 10% 13272 | -4/Hub_04(d) | Entered Research 13423 | -3/Research | Incoming investigation squad redirected 13444 | -3/Research | Reached level 29 13505 | -3/Research | Core integrity fell below 50% 13512 | -3/Research | Discovered new exit (range 20) 13531 | -3/Research | Identified exit to Quarantine 13532 | -3/Research | Found Prototype Processor 13532 | -3/Research | Identified Exp. Signal Interpreter 13562 | -3/Research | Core integrity fell below 20% 13772 | -3/Research | First assault squad dispatched 13789 | -3/Research | Incoming assault squad redirected 14004 | -3/Research | Fabricated Helical Railgun? 14048 | -3/Research | Identified exit to Armory 14069 | -3/Research | Incoming investigation squad redirected 14083 | -3/Research | Local fabrication network quarantined 14213 | -3/Research | Fabricated Helical Railgun? 14457 | -3/Research | Found Prototype Device 14457 | -3/Research | Identified EM Dispersion Field 14502 | -3/Research | Found Enh. Force Lance 14507 | -3/Research | Found Prototype Device 14507 | -3/Research | Identified EM Disruption Field 14530 | -3/Research | Found Gamma Bomb Array 14635 | -3/Research | Discovered new exit (range 22) 14670 | -3/Research | Identified exit to Research 14676 | -3/Research | Entered another Research area 14676 | -2/Research | Warlord forces began assault on 0b10 14677 | -2/Research | Core integrity fell below 50% 14678 | -2/Research | Reached level 30 14762 | -2/Research | Found Prototype Slashing Weapon 14762 | -2/Research | Identified Vibroblade 14778 | -2/Research | Spotted B-90 Cyclops 14786 | -2/Research | Research machine network offline 14822 | -2/Research | Reached level 31 14822 | -2/Research | Upgraded with Utility slot (x1) 14931 | -2/Research | Discovered new exit (range 13) 14948 | -2/Research | Met up with Warlord 15061 | -2/Research | Spotted B-90 Cyclops 15150 | -2/Research | Borebot progress halted 15153 | -2/Research | Borebot progress halted 15160 | -2/Research | Spotted Executioner 15167 | -2/Research | Destroyed Executioner 15213 | -2/Research | Spotted Striker 15262 | -2/Research | Spotted Striker 15272 | -2/Research | Destroyed Striker 15293 | -2/Research | Reached level 32 15320 | -2/Research | Spotted Striker 15337 | -2/Research | Destroyed Striker 15344 | -2/Research | Spotted Executioner 15344 | -2/Research | Spotted Executioner 15355 | -2/Research | High security lockdown imminent 15362 | -2/Research | Destroyed Executioner 15435 | -2/Research | High security lockdown engaged 15490 | -2/Research | Spotted Executioner 15506 | -2/Research | Spotted Striker 15516 | -2/Research | Destroyed Striker 15536 | -2/Research | Spotted Executioner 15536 | -2/Research | Spotted Striker 15571 | -2/Research | Destroyed Executioner 15595 | -2/Research | Borebot progress halted 15618 | -2/Research | Destroyed 21 combat bots 15644 | -2/Research | Spotted Investigator 15644 | -2/Research | Scanned by Researcher 15648 | -2/Research | Destroyed Investigator 15683 | -2/Research | Discovered new exit (range 24) 15684 | -2/Research | Spotted Executioner 15700 | -2/Research | Warlord invited to help at Command 15700 | -2/Research | Reached level 33 15721 | -2/Research | Identified exit to Testing 15722 | -2/Research | Spotted Striker 15722 | -2/Research | Spotted Striker 15728 | -2/Research | Destroyed Striker 15749 | -2/Research | Spotted Striker 15750 | -2/Research | Spotted Executioner 15751 | -2/Research | Destroyed Striker 15779 | -2/Research | Warlord destroyed during the assault 15786 | -2/Research | Destroyed 7 combat bots 15801 | -2/Research | Spotted Investigator 15810 | -2/Research | Destroyed Investigator 15825 | -2/Research | Discovered new exit (range 23) 15847 | -2/Research | Spotted Executioner 15854 | -2/Research | Destroyed Executioner 15883 | -2/Research | Destroyed 7 combat bots 15884 | -2/Research | Spotted Striker 15910 | -2/Research | Spotted Executioner 15925 | -2/Research | Destroyed Executioner 15932 | -2/Research | Destroyed Executioner 15937 | -2/Research | P-80 Master assimilated allied HE-7G6(g) 15976 | -2/Research | Spotted Executioner 15976 | -2/Research | Spotted Executioner 15976 | -2/Research | Spotted Executioner 15978 | -2/Research | Spotted Executioner 15986 | -2/Research | Destroyed Executioner 15986 | -2/Research | Destroyed Executioner 15992 | -2/Research | Destroyed Executioner 15999 | -2/Research | Spotted Striker 16003 | -2/Research | Found Prototype Processor 16003 | -2/Research | Identified Exp. Core Analyzer 16008 | -2/Research | Destroyed 4C-J54(H) 16009 | -2/Research | Spotted Investigator 16011 | -2/Research | Destroyed Striker 16016 | -2/Research | Destroyed Investigator 16032 | -2/Research | Destroyed 27 combat bots 16122 | -2/Research | Identified exit to Access 16177 | -2/Research | Spotted Striker 16190 | -2/Research | Crushed by falling debris 16207 | -2/Research | Spotted Striker 16216 | -2/Research | Destroyed Striker 16228 | -2/Research | Spotted Striker 16229 | -2/Research | Spotted Executioner 16235 | -2/Research | Destroyed Striker 16236 | -2/Research | Destroyed Executioner 16243 | -2/Research | Spotted Striker 16307 | -2/Research | Reached level 34 16307 | -2/Research | Upgraded with Utility slot (x1) 16312 | -2/Research | Destroyed Executioner 16334 | -2/Research | Sterilization system engaged 16334 | -2/Research | Non-combat units ordered to evacuate 16359 | -2/Research | Destroyed 25 combat bots 16395 | -2/Research | Crushed by falling debris 16402 | -2/Research | Entered Access 16479 | -1/Access | Garrison activated, responded to threat 16652 | -1/Access | First assault squad dispatched 16673 | -1/Access | Incoming assault squad redirected 16674 | -1/Access | Incoming assault squad redirected 16679 | -1/Access | Incoming assault squad redirected 16737 | -1/Access | Energy Cycler disabled 16859 | -1/Access | Reached level 35 16899 | -1/Access | Destroyed 13 combat bots 16923 | -1/Access | Incoming assault squad redirected 17001 | -1/Access | High security lockdown imminent 17051 | -1/Access | Crushed by falling debris 17081 | -1/Access | High security lockdown engaged 17151 | -1/Access | Discovered new exit (range 30) 17218 | -1/Access | Identified exit to Surface 17255 | -1/Access | Spotted Executioner 17264 | -1/Access | Destroyed Executioner 17268 | -1/Access | Spotted Executioner 17269 | -1/Access | Destroyed Executioner 17282 | -1/Access | Destroyed Investigator 17283 | -1/Access | Reached level 36 17315 | -1/Access | Destroyed 25 combat bots 17388 | -1/Access | Spotted Striker 17397 | -1/Access | Destroyed Striker 17397 | -1/Access | Spotted Striker 17403 | -1/Access | Destroyed Striker 17406 | -1/Access | System corruption reached 10% 17421 | -1/Access | Spotted Executioner 17421 | -1/Access | Spotted Executioner 17428 | -1/Access | Destroyed Executioner 17430 | -1/Access | Destroyed Executioner 17433 | -1/Access | Core integrity fell below 50% 17460 | -1/Access | Destroyed 27 combat bots 17594 | -1/Access | Spotted Striker 17594 | -1/Access | Spotted Investigator 17595 | -1/Access | Destroyed Striker 17599 | -1/Access | Destroyed Investigator 17653 | -1/Access | Reached level 37 17669 | -1/Access | Spotted Striker 17676 | -1/Access | Destroyed Striker 17676 | -1/Access | Spotted Striker 17690 | -1/Access | Core integrity fell below 20% 17693 | -1/Access | Sterilization system engaged 17695 | -1/Access | Destroyed Striker 17722 | -1/Access | Destroyed 41 combat bots 17765 | -1/Access | Destroyed by H-88 Terminator with Heavy Machine Gun Last Messages --------------- 17761_ Slug penetrates Wall. 17761_ System corrupted: Helical Railgun targeting data glitched. 17761_ Slug penetrates H-88 Terminator. 17761_ Destroyed Wheel. 17761_ Thief Drone sneak attacks. 17761_ H-88 Terminator Biometal Leg ripped off. 17761_ Slug penetrates Wall. 17762_ U-05 Engineer lays Concrete. 17764_ Slug penetrates H-88 Terminator. 17764_ Slug penetrates M-36 Artificer. 17764_ Destroyed Lgt. Angular Momentum Engine. 17764_ Slug penetrates H-88 Terminator. 17764_ M-36 Artificer destroyed. 17764_ Destroyed Adv. Phase Shifter. 17764_ U-05 Engineer lays Concrete. 17765_ Protomatter-25 decays. 17765_ U-05 Engineer lays Concrete. 17765_ Penetrated by Slug. [Achievement: I Was Wrong!] [Achievement: Magneto] Map ----- +----------------------------------------------------+ | ##?#### ##?#####?########## #### # # ## | | ##?#### #?################ ### # # ###### | | "##??######################## T" !%[ | | ##?#?#####?################## "" *%% | | #?#######?################### # k## =!%!!! | | ####################################k # %#=%!### | | #################################### ## # = | | ######################################## ##] | | #################################### ## "# | | ########################### = " | | ?########################## [! #= # ! ! | | ###########################"" [ =[%%=# !! | | #?#########################"" [%=[[[=## !! | | ###########################"" = [%%#" | | ###########################T = =["" | | ###########################"" %="" | | ###########################"" ! "# """Y | | ###########################"" [%=## [ "" | | ########################### %=["""[##" | | ########################### = * =%![% | | ########################### !![ [=!!#! ## | | #################################"=%% !%%#= ## | | ########################## ##### [ |![!#% ### | | ########################## ## ##" ** [#==#= ## | | ################################ !==;;[%%=* #### | | ############ """" @ n =!==h!%#%*##### | | ############ BB """" ! !%|]%!=%#%=##### | | ############ BB """" ! !!!=%!!#!==#### | | ##### """" / ! = % =[![%|%#%=##### | | # """" |*%< / *== |[=%|%=#=!=# ## | | # """"!%=!!! / !===![[="= | | # """"!= | *=u*% =|#!! # | | # ### BB """" m =/==]!% %#% ### # | | # ### BB """" = *! %*==% #!! ### | | # ### """" uu ![=!==!%%%#[=##### | | # ####################### #######%*#% #### | | " # ################# ## ########=[!=#%%##### | | # ##############################%[%#=###### | | # ############### #=R#* """"" | | # ############### "!=# ""T"" | | # ############### "" # A+ | | +#### ############### "" # # | | C ############### """""" #RC# [ | | w ############### """""" #m # | | ############### "" # %# | | ############### "" # %# | | ! ############### # ######## | | ! k ############### # w# | | ! p#########################+#+### # | | k R C k m # | +----------------------------------------------------+ Best States ------------- Heat Dissipation 97 Energy Generation 70 Energy Capacity 1750 Matter Stores 350 Matter Capacity 350 Sight Range 17 Robot Scan Range 34 Terrain Scan Range 30 Terrain Scan Density 210 Additional Mass Support 9 Resistance: KI 20 Resistance: TH 20 Resistance: EX 5 Weapon Cycling 20 Melee Speed Boost 30 Evasion (%) 77 Target Analysis 8 Core Analysis 15 Energy Filtering 30 Kinecelleration 40 Salvage Targeting 4 Offensive Hacking 34 Defensive Hacking 5 Item Schematics ----------------- Flamer | -7/Zion | Free Enh. Flamer | -7/Zion | Free Hvy. Riot Gun | -7/Zion | Free Hyp. Gauss Rifle | -6/Factory | Scanalyzed Lrn. Terrain Scanner | -6/Factory | Scanalyzed Combat Drone Bay | -6/Data Miner | Free Lgt. Regenerative Plating | -6/Data Miner | Free Exp. Terrain Scanner | -6/Data Miner | Free Exp. Targeting Computer | -6/Data Miner | Free Exp. ECM Suite | -6/Data Miner | Free Cloaking Device | -6/Data Miner | Free Adv. Melee Analysis Suite | -5/Factory | Scanalyzed KE Penetrator | -5/Factory | Scanalyzed Adv. Heavy Treads | -4/Hub_04(d) | Hacked Helical Railgun | -3/Research | Scanalyzed Nanoactuators | -3/Research | Scanalyzed Q-thruster | -3/Research | Hacked Robot Schematics ------------------ S-27 Virus | -6/Data Miner | Free G-67 Veteran | -6/Data Miner | Free G-50 Soldier | -6/Data Miner | Free L-41 Fighter | -6/Data Miner | Free X-72 Disruptor | -6/Data Miner | Free I-47 Archangel | -6/Data Miner | Free I-36 Angel | -6/Data Miner | Free M-36 Artificer | -4/Hub_04(d) | Hacked K-01 Serf | -3/Research | Hacked Fabricated ------------ F-cell Engine | x1 | -7/Factory | Preloaded F-cell Engine | x1 | -7/Factory | Preloaded Imp. Kinecellerator | x1 | -6/Factory | Preloaded Exp. Terrain Scanner | x1 | -5/Factory Helical Railgun | x1 | -3/Research Helical Railgun | x1 | -3/Research Alien Tech Used ----------------- None Achievements -------------- Equal Opportunity Bot I Was Wrong! Magneto Challenges ------------ None RPGLIKE | -11 -10 -10 -9 -9 -9 -8 -8 -7 -7 -7 -7 -7 -6 -6 -6 -6 -6 -5 -5 -5 -5 -5 -5 -5 -4 -4 -4 -4 -4 -4 -3 -2 -1 --------- Run | Scr Mat Min Mat Min Exi Min Mat Fac Low Low Zio Dee Pro Fac Low Low Dat Pro Fac Was Fac Upp Upp War Pro Fac Ext Cet Arc Hub Res Res Acc Levels Raised 36 | . . . 2 . 1 . 2 2 . 1 . 1 2 4 1 1 . 2 1 . 2 . 1 . 1 1 1 . 1 . 1 5 3 XP Earned 57267 | 3000 285 500 2838 792 200 500 3511 2392 850 500 650 1000 2600 7286 832 1161 316 2915 1124 103 3643 376 299 1129 747 1982 1657 286 197 590 1890 6471 4645 XP Spent 56970 | 2960 . . 1520 1055 1925 . 885 5115 . 1535 . 875 2015 4520 3265 . . 4325 1585 . 4095 . 1170 . 440 2600 1000 985 . . 1100 9500 4500 Upgrades 121 | 10 . . 8 4 4 . 2 14 . 5 . 4 4 8 4 . . 6 2 . 6 . 3 . 3 1 1 3 . . 3 13 13 Power Slot 1 | . . . . . . . . 1 . . . . . . . . . . . . . . . . . . . . . . . . . Propulsion Slot 5 | 1 . . . . 1 . . 1 . . . . . . . . . . 1 . 1 . . . . . . . . . . . . Utility Slot 10 | 1 . . . 1 . . . 1 . . . . 1 1 1 . . 1 . . . . . . . 1 . . . . . 2 . Weapon Slot 2 | 1 . . . . . . . . . . . . . 1 . . . . . . . . . . . . . . . . . . . Core Integrity 39 | 2 . . 2 1 1 . 1 2 . 1 . 1 1 2 1 . . 1 1 . 1 . 2 . 1 . . 1 . . 2 3 12 Heat Dissipation 12 | 1 . . 1 1 . . . 3 . 1 . 2 2 1 . . . . . . . . . . . . . . . . . . . Energy Generation 3 | . . . . . 1 . . 1 . . . . . . . . . . . . . . . . . . . . . . . 1 . Energy Storage 5 | . . . . . . . . . . . . . . . . . . 1 . . . . . . . . . . . . . 3 1 Matter Storage 1 | . . . . . . . . . . . . . . . . . . 1 . . . . . . . . . . . . . . . Mass Support 2 | . . . . 1 . . . . . . . . . . . . . . . . . . . . . . . 1 . . . . . Inventory Capacity 4 | 2 . . . . 1 . . . . . . . . . . . . . . . . . . . . . 1 . . . . . . Sight Range 1 | . . . . . . . . . . . . . . . . . . . . . . . . . . . . . . . . 1 . Sensor Range 6 | . . . 1 . . . . 1 . 1 . . . . . . . . . . . . . . 1 . . 1 . . . 1 . Terrain Scan Density 2 | . . . . . . . . . . 1 . . . . . . . . . . . . . . 1 . . . . . . . . Ranged Accuracy 6 | 1 . . 1 . . . . 1 . . . . . 1 1 . . 1 . . . . . . . . . . . . . . . Melee Accuracy 5 | . . . . . . . . 1 . . . . . . 1 . . . . . 2 . . . . . . . . . . 1 . Hack Attack % 3 | . . . . . . . . 1 . . . . . 1 . . . . . . . . . . . . . . . . 1 . . Hack Defense % 1 | . . . . . . . . 1 . . . . . . . . . . . . . . . . . . . . . . . . . KI Resistance % 4 | . . . 1 . . . . . . . . . . 1 . . . 1 . . 1 . . . . . . . . . . . . TH Resistance % 4 | . . . 1 . . . . . . . . 1 . . . . . . . . 1 . 1 . . . . . . . . . . EX Resistance % 1 | . . . . . . . . . . . . . . . . . . . . . . . . . . . . . . . . 1 . KI Damage % 4 | 1 . . 1 . . . 1 . . 1 . . . . . . . . . . . . . . . . . . . . . . . Protomatter Created 10390 | . 52 . 57 44 . . 70 84 39 . 331 115 147 166 59 246 . 59 . . 530 287 192 879 30 764 381 . 83 176 376 2562 2661 Integrity Restored 16516 | . 122 . 208 33 . . 143 56 142 . 371 249 492 590 172 696 . 384 . 144 876 664 293 548 35 536 595 128 10 264 912 5754 2099 Core 13421 | . 97 . 178 33 . . 143 28 75 . 245 249 492 578 113 458 . 343 . . 719 550 210 370 26 424 465 72 8 181 912 4608 1844 Parts 3095 | . 25 . 30 . . . . 28 67 . 126 . . 12 59 238 . 41 . 144 157 114 83 178 9 112 130 56 2 83 . 1146 255 Protomatter Decayed 9354 | . 10 . . 33 . . 22 107 99 6 152 . 9 128 . . . 6 . 379 793 53 72 365 16 529 625 244 133 367 54 4664 488 Game ------ Seed MatterOpticalProtomatter Manual? 0 Play Time 06:16:18 Cumulative 305.6 hours Start 2021.05.28 @ 12:15:25 End 2021.05.28 @ 19:34:26 Sessions 3 Manual Loads 0 Difficulty Rogue Special Mode Winter2019/RPGLIKE Game No. 121 Rogue 121 Adventurer 0 Explorer 0 Win Type - Total 12 Types 10/0/1/1/0/0/0/0/0 Lore% 75 Gallery% 84 Achievement% 69 Wizard Run 0 Options --------- ASCII 0 Keyboard 1 Movement Numpad Keybinds 0 Fullscreen 2 Font 12/Smallcaps Map View 83x54 Tactical HUD 1 Map Filters NONE Filters NONE Steam X RUN: 3d3810a5-30c6-4688-b5d9-d2797326f51b